Publisher Label,Publisher URI,"Supplier","Net Amount (£)","Organisational Unit","Merchant Category Code","Purpose","Payment Date"
"Wolverhampton City Council","http://opendatacommunities.org/id/metropolitan-district-council/wolverhampton","WOLVES CC","57.75","Priory Green - CIN SWU S17","9399","No Recourse to Public Funds","30/10/2015"
"Wolverhampton City Council","http://opendatacommunities.org/id/metropolitan-district-council/wolverhampton","DOVETAIL LTD GBP","114.54","Property Services - Business Support","5999","Subscriptions","30/10/2015"
"Wolverhampton City Council","http://opendatacommunities.org/id/metropolitan-district-council/wolverhampton","A F BLAKEMORE & SON LT","206.79","Mayoral Expenses","5411","Hospitality","30/10/2015"
"Wolverhampton City Council","http://opendatacommunities.org/id/metropolitan-district-council/wolverhampton","OFFICE DEPOT","111.37","Youth Service - General","5111","Equipment - Purchase","30/10/2015"
"Wolverhampton City Council","http://opendatacommunities.org/id/metropolitan-district-council/wolverhampton","THE COAL AUTHORITY","82.80","Legal Services","9399","Services - Fees and Charges","30/10/2015"
"Wolverhampton City Council","http://opendatacommunities.org/id/metropolitan-district-council/wolverhampton","CARVER/WOLVERHAMPTON/L","44.17","Wholesale Market Facilities Management","5211","Cleaning Supplies and Materials","30/10/2015"
"Wolverhampton City Council","http://opendatacommunities.org/id/metropolitan-district-council/wolverhampton","A F BLAKEMORE & SON LT","263.58","Mayoral Expenses","5411","Hospitality","30/10/2015"
"Wolverhampton City Council","http://opendatacommunities.org/id/metropolitan-district-council/wolverhampton","WEST COAST TRAINS","-60.20","Legal Services","4112","Public Transport","30/10/2015"
"Wolverhampton City Council","http://opendatacommunities.org/id/metropolitan-district-council/wolverhampton","TRAINLINE","140.45","Headstart","4112","Public Transport","30/10/2015"
"Wolverhampton City Council","http://opendatacommunities.org/id/metropolitan-district-council/wolverhampton","TRAINLINE","68.95","Bilston 1 - CIN SWU S17","4112","Public Transport","30/10/2015"
"Wolverhampton City Council","http://opendatacommunities.org/id/metropolitan-district-council/wolverhampton","OFFICE DEPOT","315.44","Global Budgets","5111","Stationery","30/10/2015"
"Wolverhampton City Council","http://opendatacommunities.org/id/metropolitan-district-council/wolverhampton","BRITANNIA","32.50","Avenues - CIN SWU S17","7011","Services - Supplies & Services to users","30/10/2015"
"Wolverhampton City Council","http://opendatacommunities.org/id/metropolitan-district-council/wolverhampton","PREMIER INN","66.67","WV Active Business Support","3811","Services - Professional Fees","30/10/2015"
"Wolverhampton City Council","http://opendatacommunities.org/id/metropolitan-district-council/wolverhampton","LOYD WOLVERHAMPTON, QU","40.00","Duke Street Bungalows","6011","Financial Assistance In Exceptional Circ","30/10/2015"
"Wolverhampton City Council","http://opendatacommunities.org/id/metropolitan-district-council/wolverhampton","SCREWFIX","10.78","Technician","5211","Materials","30/10/2015"
"Wolverhampton City Council","http://opendatacommunities.org/id/metropolitan-district-council/wolverhampton","Amazon UK Marketplace","2.73","MAST 1 - Deansfield","5942","Direct Work With Children","30/10/2015"
"Wolverhampton City Council","http://opendatacommunities.org/id/metropolitan-district-council/wolverhampton","WEST COAST TRAINS","70.20","Legal Services","4112","Public Transport","30/10/2015"
"Wolverhampton City Council","http://opendatacommunities.org/id/metropolitan-district-council/wolverhampton","ARGOS LTD","42.86","Specialist Support Service - North","5310","Equipment - Purchase","30/10/2015"
"Wolverhampton City Council","http://opendatacommunities.org/id/metropolitan-district-council/wolverhampton","OFFICE DEPOT","77.15","Cemeteries","5111","Stationery","30/10/2015"
"Wolverhampton City Council","http://opendatacommunities.org/id/metropolitan-district-council/wolverhampton","TVLICENSING.CO.UK","145.50","Swan Bank","7392","Services - General Licences","30/10/2015"
"Wolverhampton City Council","http://opendatacommunities.org/id/metropolitan-district-council/wolverhampton","Amazon UK Marketplace","6.79","Technical Material","5942","Equipment - Purchase","30/10/2015"
"Wolverhampton City Council","http://opendatacommunities.org/id/metropolitan-district-council/wolverhampton","TRAINLINE","24.02","Legal Services","4112","Public Transport","29/10/2015"
"Wolverhampton City Council","http://opendatacommunities.org/id/metropolitan-district-council/wolverhampton","FTPE WEBTIS 1","53.50","LAC Transitions Team","4112","Public Transport","29/10/2015"
"Wolverhampton City Council","http://opendatacommunities.org/id/metropolitan-district-council/wolverhampton","Amazon UK Marketplace","-294.79","SEN Sensory Inclusion","5999","Equipment - Purchase","29/10/2015"
"Wolverhampton City Council","http://opendatacommunities.org/id/metropolitan-district-council/wolverhampton","CENTURY ELECTRICAL WHO","37.80","Public Conveniences","5065","R&M - Departmental planned (external)","29/10/2015"
"Wolverhampton City Council","http://opendatacommunities.org/id/metropolitan-district-council/wolverhampton","WILKO RETAIL LIMIT","5.00","Service Wide","5722","Materials","29/10/2015"
"Wolverhampton City Council","http://opendatacommunities.org/id/metropolitan-district-council/wolverhampton","OFFICE DEPOT","4.59","Benefits","5111","Stationery","29/10/2015"
"Wolverhampton City Council","http://opendatacommunities.org/id/metropolitan-district-council/wolverhampton","TSB  BRADMORE","40.00","Assessment Team (West)","6011","Financial Assistance In Exceptional Circ","29/10/2015"
"Wolverhampton City Council","http://opendatacommunities.org/id/metropolitan-district-council/wolverhampton","WEST COAST TRAINS","11.00","Economic Development","4112","Public Transport","29/10/2015"
"Wolverhampton City Council","http://opendatacommunities.org/id/metropolitan-district-council/wolverhampton","WEST COAST TRAINS","70.20","Legal Services","4112","Public Transport","29/10/2015"
"Wolverhampton City Council","http://opendatacommunities.org/id/metropolitan-district-council/wolverhampton","WEST COAST TRAINS","10.67","LAC Transitions Team","4112","Public Transport","29/10/2015"
"Wolverhampton City Council","http://opendatacommunities.org/id/metropolitan-district-council/wolverhampton","Amazon UK Marketplace","14.61","Global Budgets","5942","Books","29/10/2015"
"Wolverhampton City Council","http://opendatacommunities.org/id/metropolitan-district-council/wolverhampton","WEST COAST TRAINS","111.60","Graiseley - CIN SWU S17","4112","Public Transport","29/10/2015"
"Wolverhampton City Council","http://opendatacommunities.org/id/metropolitan-district-council/wolverhampton","OFFICE DEPOT","32.08","Financial Assessments","5111","Stationery","29/10/2015"
"Wolverhampton City Council","http://opendatacommunities.org/id/metropolitan-district-council/wolverhampton","OFFICE DEPOT","152.65","Education Catering - General Overheads","5111","Stationery","29/10/2015"
"Wolverhampton City Council","http://opendatacommunities.org/id/metropolitan-district-council/wolverhampton","TESCO STORE 3414","9.00","Environmental Health - Pub Prot - Gen","5411","Equipment - Purchase","29/10/2015"
"Wolverhampton City Council","http://opendatacommunities.org/id/metropolitan-district-council/wolverhampton","HUGHES","416.67","LAC Transitions Team","5732","Equipment - Purchase","29/10/2015"
"Wolverhampton City Council","http://opendatacommunities.org/id/metropolitan-district-council/wolverhampton","OFFICE DEPOT","34.63","Intensive Family Support Unit","5111","Stationery","29/10/2015"
"Wolverhampton City Council","http://opendatacommunities.org/id/metropolitan-district-council/wolverhampton","Amazon EU","70.20","Environmental Health - Pub Prot - Gen","5969","Equipment - Purchase","29/10/2015"
"Wolverhampton City Council","http://opendatacommunities.org/id/metropolitan-district-council/wolverhampton","TESCO DIRECT","106.67","Aldersley Leisure Village","5999","Equipment - Purchase","28/10/2015"
"Wolverhampton City Council","http://opendatacommunities.org/id/metropolitan-district-council/wolverhampton","TESCO STORE 3414","2.00","Mayoral Expenses","5411","Hospitality","28/10/2015"
"Wolverhampton City Council","http://opendatacommunities.org/id/metropolitan-district-council/wolverhampton","ARGOS RETAIL GROUP","33.32","Avenues - CIN SWU S17","5310","Equipment - Purchase","28/10/2015"
"Wolverhampton City Council","http://opendatacommunities.org/id/metropolitan-district-council/wolverhampton","PATISSERIE VALERIE","7.08","Mayoral Expenses","5812","Hospitality","28/10/2015"
"Wolverhampton City Council","http://opendatacommunities.org/id/metropolitan-district-council/wolverhampton","ASDA HOME SHOPPING","57.83","Swan Bank","5411","Provisions (Not for resale)","28/10/2015"
"Wolverhampton City Council","http://opendatacommunities.org/id/metropolitan-district-council/wolverhampton","FACEBOOK SL6NY76B92","600.00","Communications & Marketing - General","7311","Marketing \ Non-staff advertising","28/10/2015"
"Wolverhampton City Council","http://opendatacommunities.org/id/metropolitan-district-council/wolverhampton","WOLVERHAMPTON TROPHY C","70.00","Blakenhall Commty & Healthy Living Ctr","5999","Equipment - Purchase","28/10/2015"
"Wolverhampton City Council","http://opendatacommunities.org/id/metropolitan-district-council/wolverhampton","Amazon UK Marketplace","132.94","Environmental Health - Pub Prot - Gen","5942","Equipment - Purchase","28/10/2015"
"Wolverhampton City Council","http://opendatacommunities.org/id/metropolitan-district-council/wolverhampton","OFFICE DEPOT","167.04","HR Advice","5111","Stationery","28/10/2015"
"Wolverhampton City Council","http://opendatacommunities.org/id/metropolitan-district-council/wolverhampton","SAINSBURYS 2040","21.05","Duke Street Bungalows","5411","Provisions (Not for resale)","28/10/2015"
"Wolverhampton City Council","http://opendatacommunities.org/id/metropolitan-district-council/wolverhampton","ASDA HOME SHOPPING","0.04","Swan Bank","5411","Provisions (Not for resale)","28/10/2015"
"Wolverhampton City Council","http://opendatacommunities.org/id/metropolitan-district-council/wolverhampton","OFFICE DEPOT","4.26","Fleet Management","5111","Stationery","28/10/2015"
"Wolverhampton City Council","http://opendatacommunities.org/id/metropolitan-district-council/wolverhampton","ASDA HOME SHOPPING","-0.29","Ernest Bold Court","5411","Provisions (Not for resale)","28/10/2015"
"Wolverhampton City Council","http://opendatacommunities.org/id/metropolitan-district-council/wolverhampton","GRO HM PASSPORT OFFICE","23.40","Legal Services","9399","Services - Fees and Charges","28/10/2015"
"Wolverhampton City Council","http://opendatacommunities.org/id/metropolitan-district-council/wolverhampton","BRITANNIA","180.00","Avenues - CIN SWU S17","7011","Services - Supplies & Services to users","28/10/2015"
"Wolverhampton City Council","http://opendatacommunities.org/id/metropolitan-district-council/wolverhampton","ARGOS RETAIL GROUP","98.94","LAC Transitions Team","5310","Equipment - Purchase","28/10/2015"
"Wolverhampton City Council","http://opendatacommunities.org/id/metropolitan-district-council/wolverhampton","WWW.MATRIXUNIFORMS.CO.","300.00","Education Catering - General Overheads","5691","Clothing / Uniforms","28/10/2015"
"Wolverhampton City Council","http://opendatacommunities.org/id/metropolitan-district-council/wolverhampton","Virgintrains.co.uk","52.80","Planning","4112","Public Transport","28/10/2015"
"Wolverhampton City Council","http://opendatacommunities.org/id/metropolitan-district-council/wolverhampton","ITUNES.COM/BILL","43.46","Technical Support","5735","Computing - Purchase of Software","28/10/2015"
"Wolverhampton City Council","http://opendatacommunities.org/id/metropolitan-district-council/wolverhampton","POUNDLAND LTD 1463","6.00","Global Budgets","5310","Equipment - Purchase","28/10/2015"
"Wolverhampton City Council","http://opendatacommunities.org/id/metropolitan-district-council/wolverhampton","Mimeo","414.34","School Improvement","7338","Printing","28/10/2015"
"Wolverhampton City Council","http://opendatacommunities.org/id/metropolitan-district-council/wolverhampton","ARGOS RETAIL GROUP","278.99","LAC Transitions Team","5310","Equipment - Purchase","28/10/2015"
"Wolverhampton City Council","http://opendatacommunities.org/id/metropolitan-district-council/wolverhampton","WICKES","12.07","Caretakers Community Centre","5211","R&M - Departmental planned (external)","28/10/2015"
"Wolverhampton City Council","http://opendatacommunities.org/id/metropolitan-district-council/wolverhampton","WWW.MATRIXUNIFORMS.CO.","283.14","Education Catering - General Overheads","5691","Clothing / Uniforms","28/10/2015"
"Wolverhampton City Council","http://opendatacommunities.org/id/metropolitan-district-council/wolverhampton","ASDA HOME SHOPPING","59.44","Ernest Bold Court","5411","Provisions (Not for resale)","28/10/2015"
"Wolverhampton City Council","http://opendatacommunities.org/id/metropolitan-district-council/wolverhampton","SQUARESPACE INC.","128.76","Learning Technologies","7372","Computing - Purchase of Software","28/10/2015"
"Wolverhampton City Council","http://opendatacommunities.org/id/metropolitan-district-council/wolverhampton","Amazon UK Marketplace","16.80","Environmental Health - Pub Prot - Gen","5942","Equipment - Purchase","28/10/2015"
"Wolverhampton City Council","http://opendatacommunities.org/id/metropolitan-district-council/wolverhampton","COMBINED COURT","150.00","Legal Services","9222","Services - Fees and Charges","28/10/2015"
"Wolverhampton City Council","http://opendatacommunities.org/id/metropolitan-district-council/wolverhampton","PAYPAL  MUSEUMSASSC","310.00","Art Gallery","8398","Services - Supplies & Services to users","27/10/2015"
"Wolverhampton City Council","http://opendatacommunities.org/id/metropolitan-district-council/wolverhampton","OFFICE DEPOT","59.14","Fleet Management","5111","Stationery","27/10/2015"
"Wolverhampton City Council","http://opendatacommunities.org/id/metropolitan-district-council/wolverhampton","HMCOURTS-SERVICE.G","20.00","Mental Health Assessment & Care Mgmt","9222","Services - Fees and Charges","27/10/2015"
"Wolverhampton City Council","http://opendatacommunities.org/id/metropolitan-district-council/wolverhampton","PAYPAL  SYSTEMAXEUR","15.06","College of Further Education","5732","Equipment - Purchase","27/10/2015"
"Wolverhampton City Council","http://opendatacommunities.org/id/metropolitan-district-council/wolverhampton","KILLGERMS CHEMICAL","38.00","Environmental Health - Pub Prot - Gen","7342","Equipment - Purchase","27/10/2015"
"Wolverhampton City Council","http://opendatacommunities.org/id/metropolitan-district-council/wolverhampton","CO-OP GROUP 070361","2.49","Warstones Resource Centre","5411","Provisions (Not for resale)","27/10/2015"
"Wolverhampton City Council","http://opendatacommunities.org/id/metropolitan-district-council/wolverhampton","HOTELDUVIN.COM","555.83","Combined Authority","7011","Hospitality","27/10/2015"
"Wolverhampton City Council","http://opendatacommunities.org/id/metropolitan-district-council/wolverhampton","TESCO STORES 6727","6.53","Restorative Justice","5411","Hospitality","27/10/2015"
"Wolverhampton City Council","http://opendatacommunities.org/id/metropolitan-district-council/wolverhampton","POLYBAGS LTD","24.98","Civic Halls Non Direct Management A/C","5099","Equipment - Purchase","27/10/2015"
"Wolverhampton City Council","http://opendatacommunities.org/id/metropolitan-district-council/wolverhampton","WDT LONDON","2224.40","Civic Hall Out-house Promotions","7394","Equipment - Hire","27/10/2015"
"Wolverhampton City Council","http://opendatacommunities.org/id/metropolitan-district-council/wolverhampton","INTEL FOOD CENTRAL","10.83","LAC Transitions Team","5812","Educ Trips, Holidays, Outings, Activity","27/10/2015"
"Wolverhampton City Council","http://opendatacommunities.org/id/metropolitan-district-council/wolverhampton","SCANDINAVIAN AIRLINE SYSTEM (SAS)","340.84","Economic Development","3016","Public Transport","27/10/2015"
"Wolverhampton City Council","http://opendatacommunities.org/id/metropolitan-district-council/wolverhampton","TRAINLINE","33.10","LAC Transitions Team","4112","Public Transport","27/10/2015"
"Wolverhampton City Council","http://opendatacommunities.org/id/metropolitan-district-council/wolverhampton","O2 MBB","10.00","Civic Halls Non Direct Management A/C","4812","Comms - Mobile Telephones","27/10/2015"
"Wolverhampton City Council","http://opendatacommunities.org/id/metropolitan-district-council/wolverhampton","Virgintrains.co.uk","67.85","Black Art Movement","4112","Public Transport","27/10/2015"
"Wolverhampton City Council","http://opendatacommunities.org/id/metropolitan-district-council/wolverhampton","WM MORRISON 024","31.17","Ernest Bold Court","5411","Provisions (Not for resale)","27/10/2015"
"Wolverhampton City Council","http://opendatacommunities.org/id/metropolitan-district-council/wolverhampton","ASDA SUPERSTORE","241.47","Upper Pendeford Farm Childrens Home","5411","Provisions (Not for resale)","27/10/2015"
"Wolverhampton City Council","http://opendatacommunities.org/id/metropolitan-district-council/wolverhampton","BOOTS.COM","12.08","Environmental Health - Pub Prot - Gen","5912","Equipment - Purchase","27/10/2015"
"Wolverhampton City Council","http://opendatacommunities.org/id/metropolitan-district-council/wolverhampton","HOBBY CRAFT LTD","22.50","Education And Access","5970","Materials","27/10/2015"
"Wolverhampton City Council","http://opendatacommunities.org/id/metropolitan-district-council/wolverhampton","WWW.OFFICEFURNITUREONL","165.60","Civic Halls Non Direct Management A/C","5943","Stationery","27/10/2015"
"Wolverhampton City Council","http://opendatacommunities.org/id/metropolitan-district-council/wolverhampton","CARPET CENTRE LTD","312.00","Whitmore Reans - CIN SWU S17","5713","Equipment - Purchase","27/10/2015"
"Wolverhampton City Council","http://opendatacommunities.org/id/metropolitan-district-council/wolverhampton","PAYPAL  PUNTERSPUBL","30.00","Fleet Management","5942","Subscriptions","27/10/2015"
"Wolverhampton City Council","http://opendatacommunities.org/id/metropolitan-district-council/wolverhampton","TV LICENSING","145.50","Nelson Mandela House","7392","Services - Consultants","27/10/2015"
"Wolverhampton City Council","http://opendatacommunities.org/id/metropolitan-district-council/wolverhampton","CARESHOP","57.18","Ernest Bold Court","5999","Cleaning Supplies and Materials","27/10/2015"
"Wolverhampton City Council","http://opendatacommunities.org/id/metropolitan-district-council/wolverhampton","THE ENTERTAINER 15","15.60","MAST 3 - Graiseley","5945","Direct Work With Children","27/10/2015"
"Wolverhampton City Council","http://opendatacommunities.org/id/metropolitan-district-council/wolverhampton","WILKO RETAIL LIMIT","5.75","Global Budgets","5722","Stationery","27/10/2015"
"Wolverhampton City Council","http://opendatacommunities.org/id/metropolitan-district-council/wolverhampton","POST OFFICE COUNTER","205.00","Fostering Team & Allowances","9402","Comms - Postage","27/10/2015"
"Wolverhampton City Council","http://opendatacommunities.org/id/metropolitan-district-council/wolverhampton","TVLICENSING.CO.UK","145.50","LAC Transitions Team","7392","Services - Consultants","27/10/2015"
"Wolverhampton City Council","http://opendatacommunities.org/id/metropolitan-district-council/wolverhampton","Virgintrains.co.uk","387.20","Pupil & Student Support","4112","Public Transport","27/10/2015"
"Wolverhampton City Council","http://opendatacommunities.org/id/metropolitan-district-council/wolverhampton","IMM HEALTH SURCHARGE","600.00","LAC Transitions Team","9399","Services - Professional Fees","27/10/2015"
"Wolverhampton City Council","http://opendatacommunities.org/id/metropolitan-district-council/wolverhampton","MICHAEL BACHYK","59.50","Catering Overhead Account","5422","Catering","27/10/2015"
"Wolverhampton City Council","http://opendatacommunities.org/id/metropolitan-district-council/wolverhampton","STERMAT HARDWARE","6.91","Towers Outdoor Education Centre","5251","Equipment - Purchase","27/10/2015"
"Wolverhampton City Council","http://opendatacommunities.org/id/metropolitan-district-council/wolverhampton","KFC MANDER CENTRE","23.89","LAC Transitions Team","5814","Educ Trips, Holidays, Outings, Activity","27/10/2015"
"Wolverhampton City Council","http://opendatacommunities.org/id/metropolitan-district-council/wolverhampton","ARGOS LTD","23.74","LAC Transitions Team","5310","Client Allowances","26/10/2015"
"Wolverhampton City Council","http://opendatacommunities.org/id/metropolitan-district-council/wolverhampton","WM MORRISON 024","18.08","Craftplay","5411","Materials","26/10/2015"
"Wolverhampton City Council","http://opendatacommunities.org/id/metropolitan-district-council/wolverhampton","OFFICE DEPOT","155.25","Cemeteries","5111","Stationery","26/10/2015"
"Wolverhampton City Council","http://opendatacommunities.org/id/metropolitan-district-council/wolverhampton","ASDA HOME SHOPPING","54.76","Swan Bank","5411","Provisions (Not for resale)","26/10/2015"
"Wolverhampton City Council","http://opendatacommunities.org/id/metropolitan-district-council/wolverhampton","TESCO STORES 6197","82.63","Windmill Lane - Respite Home","5411","Provisions (Not for resale)","26/10/2015"
"Wolverhampton City Council","http://opendatacommunities.org/id/metropolitan-district-council/wolverhampton","WIX.COM","46.57","Technical Support","5968","Subscriptions","26/10/2015"
"Wolverhampton City Council","http://opendatacommunities.org/id/metropolitan-district-council/wolverhampton","Amazon UK Marketplace","294.79","SEN Sensory Inclusion","5942","Equipment - Purchase","26/10/2015"
"Wolverhampton City Council","http://opendatacommunities.org/id/metropolitan-district-council/wolverhampton","THE POST OFFICE","3.30","WV Active Business Support","9402","Comms - Postage","26/10/2015"
"Wolverhampton City Council","http://opendatacommunities.org/id/metropolitan-district-council/wolverhampton","Cross Country","38.20","Bilston 1 - CIN SWU S17","4112","Public Transport","26/10/2015"
"Wolverhampton City Council","http://opendatacommunities.org/id/metropolitan-district-council/wolverhampton","STAPLES UK","14.97","Bilston 1 - CIN SWU S17","5943","Stationery","26/10/2015"
"Wolverhampton City Council","http://opendatacommunities.org/id/metropolitan-district-council/wolverhampton","VIVID EXPERIENCE L","459.00","Children's Village Children Centre","7399","Conference Expenses","26/10/2015"
"Wolverhampton City Council","http://opendatacommunities.org/id/metropolitan-district-council/wolverhampton","TVLICENSING.CO.UK","145.50","Nelson Mandela House","7392","Services - General Licences","26/10/2015"
"Wolverhampton City Council","http://opendatacommunities.org/id/metropolitan-district-council/wolverhampton","ASDA SUPERSTORE","31.34","Play General","5411","Provisions (Not for resale)","26/10/2015"
"Wolverhampton City Council","http://opendatacommunities.org/id/metropolitan-district-council/wolverhampton","WIX.COM","46.57","Technical Support","5968","Subscriptions","26/10/2015"
"Wolverhampton City Council","http://opendatacommunities.org/id/metropolitan-district-council/wolverhampton","ASDA HOME SHOPPING","0.10","Ernest Bold Court","5411","Provisions (Not for resale)","26/10/2015"
"Wolverhampton City Council","http://opendatacommunities.org/id/metropolitan-district-council/wolverhampton","Opodo ID","6.64","Economic Development","4722","Public Transport","26/10/2015"
"Wolverhampton City Council","http://opendatacommunities.org/id/metropolitan-district-council/wolverhampton","Amazon UK Marketplace","14.58","Global Budgets","5942","Books","26/10/2015"
"Wolverhampton City Council","http://opendatacommunities.org/id/metropolitan-district-council/wolverhampton","TESCO STORES 5403","1.00","Swan Bank","5411","Provisions (Not for resale)","26/10/2015"
"Wolverhampton City Council","http://opendatacommunities.org/id/metropolitan-district-council/wolverhampton","ASDA HOME SHOPPING","60.60","Ernest Bold Court","5411","Provisions (Not for resale)","26/10/2015"
"Wolverhampton City Council","http://opendatacommunities.org/id/metropolitan-district-council/wolverhampton","SAINSBURYS 2040","96.26","Children's Village Nursery","5411","School Meals","26/10/2015"
"Wolverhampton City Council","http://opendatacommunities.org/id/metropolitan-district-council/wolverhampton","VALUE PRODUCTS LTD","176.46","Head of Service - LAC","5999","Equipment - Purchase","26/10/2015"
"Wolverhampton City Council","http://opendatacommunities.org/id/metropolitan-district-council/wolverhampton","HILTON","36.00","Strategic Asset Management - General","3504","Subsistence","26/10/2015"
"Wolverhampton City Council","http://opendatacommunities.org/id/metropolitan-district-council/wolverhampton","MAILCHIMP","33.00","City Direct","7399","Equipment - Purchase","26/10/2015"
"Wolverhampton City Council","http://opendatacommunities.org/id/metropolitan-district-council/wolverhampton","TVLICENSING.CO.UK","145.50","LAC Transitions Team","7392","Services - Consultants","26/10/2015"
"Wolverhampton City Council","http://opendatacommunities.org/id/metropolitan-district-council/wolverhampton","NOTEMACHINE","250.00","Childrens with Disabilities Team","6011","Financial Assistance In Exceptional Circ","26/10/2015"
"Wolverhampton City Council","http://opendatacommunities.org/id/metropolitan-district-council/wolverhampton","HOMEBASE LTD 197","-24.52","Towers Outdoor Education Centre","5211","Materials","26/10/2015"
"Wolverhampton City Council","http://opendatacommunities.org/id/metropolitan-district-council/wolverhampton","OFFICE DEPOT","30.79","CIN - Bilston CC2 - Area 2","5111","Stationery","26/10/2015"
"Wolverhampton City Council","http://opendatacommunities.org/id/metropolitan-district-council/wolverhampton","Wix.com","46.57","Technical Support","5817","Subscriptions","26/10/2015"
"Wolverhampton City Council","http://opendatacommunities.org/id/metropolitan-district-council/wolverhampton","TESCO STORE 3414","40.00","School Crossing Patrol","5411","Comms - Mobile Telephones","26/10/2015"
"Wolverhampton City Council","http://opendatacommunities.org/id/metropolitan-district-council/wolverhampton","Amazon EU","37.32","Bert Williams Leisure Centre","5969","Equipment - Purchase","23/10/2015"
"Wolverhampton City Council","http://opendatacommunities.org/id/metropolitan-district-council/wolverhampton","FACEBOOK JW3VY7SQ92","400.03","Civic Halls Non Direct Management A/C","7311","Marketing \ Non-staff advertising","23/10/2015"
"Wolverhampton City Council","http://opendatacommunities.org/id/metropolitan-district-council/wolverhampton","OFFICE DEPOT","21.19","Benefits","5111","Stationery","23/10/2015"
"Wolverhampton City Council","http://opendatacommunities.org/id/metropolitan-district-council/wolverhampton","QUICK DRAW SUPP","9.82","Craftplay","7372","Materials","23/10/2015"
"Wolverhampton City Council","http://opendatacommunities.org/id/metropolitan-district-council/wolverhampton","OFFICE DEPOT","97.32","Nelson Mandela House","5111","Stationery","23/10/2015"
"Wolverhampton City Council","http://opendatacommunities.org/id/metropolitan-district-council/wolverhampton","GOLD SUPERSTORE","9.40","Action for Independence","5251","Equipment - R & M","23/10/2015"
"Wolverhampton City Council","http://opendatacommunities.org/id/metropolitan-district-council/wolverhampton","Amazon EU","13.19","Parent / Partnership Service","5969","Stationery","23/10/2015"
"Wolverhampton City Council","http://opendatacommunities.org/id/metropolitan-district-council/wolverhampton","MD REMOVALS","371.13","Alfred Squire - CIN SWU S17","5999","Hire of Vehicles","23/10/2015"
"Wolverhampton City Council","http://opendatacommunities.org/id/metropolitan-district-council/wolverhampton","Virgintrains.co.uk","184.00","Neighbourhood Management Central","4112","Public Transport","23/10/2015"
"Wolverhampton City Council","http://opendatacommunities.org/id/metropolitan-district-council/wolverhampton","FACEBOOK DDPTQ72B92","600.06","Communications & Marketing - General","7311","Marketing \ Non-staff advertising","23/10/2015"
"Wolverhampton City Council","http://opendatacommunities.org/id/metropolitan-district-council/wolverhampton","WWW HOVER COM","66.53","Technical Support","4816","Computing - Purchase of Software","23/10/2015"
"Wolverhampton City Council","http://opendatacommunities.org/id/metropolitan-district-council/wolverhampton","BILSTON CARPETS","150.00","Whitmore Reans - CIN SWU S17","5713","Equipment - Purchase","23/10/2015"
"Wolverhampton City Council","http://opendatacommunities.org/id/metropolitan-district-council/wolverhampton","Amazon UK Marketplace","17.20","Global Budgets","5942","Books","23/10/2015"
"Wolverhampton City Council","http://opendatacommunities.org/id/metropolitan-district-council/wolverhampton","WEST COAST TRAINS","99.00","Assessment Team (West)","4112","Public Transport","23/10/2015"
"Wolverhampton City Council","http://opendatacommunities.org/id/metropolitan-district-council/wolverhampton","Amazon EU","14.95","Adoption and Residence Team & Allowances","5969","Equipment - Purchase","23/10/2015"
"Wolverhampton City Council","http://opendatacommunities.org/id/metropolitan-district-council/wolverhampton","ARGOS RETAIL GROUP","211.62","LAC Transitions Team","5310","Equipment - Purchase","23/10/2015"
"Wolverhampton City Council","http://opendatacommunities.org/id/metropolitan-district-council/wolverhampton","WM MORRISON 024","7.58","CIN - Bilston CC2 - Area 2","5411","Comms - Postage","23/10/2015"
"Wolverhampton City Council","http://opendatacommunities.org/id/metropolitan-district-council/wolverhampton","OFFICE DEPOT","4.26","Benefits","5111","Stationery","23/10/2015"
"Wolverhampton City Council","http://opendatacommunities.org/id/metropolitan-district-council/wolverhampton","HOMEBASE LTD 197","39.95","Towers Outdoor Education Centre","5211","Materials","23/10/2015"
"Wolverhampton City Council","http://opendatacommunities.org/id/metropolitan-district-council/wolverhampton","QUALITY OFFICE SUP","119.94","MAST 2 - Bilston","5943","Stationery","23/10/2015"
"Wolverhampton City Council","http://opendatacommunities.org/id/metropolitan-district-council/wolverhampton","INSPIRE HIRE","600.85","Civic Hall Out-house Promotions","5021","Equipment - Hire","23/10/2015"
"Wolverhampton City Council","http://opendatacommunities.org/id/metropolitan-district-council/wolverhampton","HMCOURTS-SERVICE.G","2673.00","Revenues","9222","Services - Fees and Charges","23/10/2015"
"Wolverhampton City Council","http://opendatacommunities.org/id/metropolitan-district-council/wolverhampton","HOTEL ANTIGO TROVATOR","176.03","Black Art Movement","7011","Services - Supplies & Services to users","23/10/2015"
"Wolverhampton City Council","http://opendatacommunities.org/id/metropolitan-district-council/wolverhampton","WEST COAST TRAINS","13.80","Black Art Movement","4112","Public Transport","23/10/2015"
"Wolverhampton City Council","http://opendatacommunities.org/id/metropolitan-district-council/wolverhampton","HMCOURTS-SERVICE.G","189.00","Revenues","9222","Services - Fees and Charges","23/10/2015"
"Wolverhampton City Council","http://opendatacommunities.org/id/metropolitan-district-council/wolverhampton","WM MORRISON 024","26.28","Ernest Bold Court","5411","Provisions (Not for resale)","23/10/2015"
"Wolverhampton City Council","http://opendatacommunities.org/id/metropolitan-district-council/wolverhampton","SWIFT BUSINESS SOLUTIO","29.00","Revenues","5943","Stationery","23/10/2015"
"Wolverhampton City Council","http://opendatacommunities.org/id/metropolitan-district-council/wolverhampton","HMCOURTS-SERVICE.G","3210.00","Revenues","9222","Services - Fees and Charges","23/10/2015"
"Wolverhampton City Council","http://opendatacommunities.org/id/metropolitan-district-council/wolverhampton","Severn Tren Water","455.67","Strat Asst Mgt Bilston Town Centre Regen","4900","Electricity","23/10/2015"
"Wolverhampton City Council","http://opendatacommunities.org/id/metropolitan-district-council/wolverhampton","ROYAL CARPETS","230.00","LAC Transitions Team","5713","Accommodation Costs","23/10/2015"
"Wolverhampton City Council","http://opendatacommunities.org/id/metropolitan-district-council/wolverhampton","Flybe2674 2674067703871","464.99","Leonardo Da Vinci Project","4511","Public Transport","23/10/2015"
"Wolverhampton City Council","http://opendatacommunities.org/id/metropolitan-district-council/wolverhampton","ARGOS RETAIL GROUP","169.12","LAC Transitions Team","5310","Equipment - Purchase","23/10/2015"
"Wolverhampton City Council","http://opendatacommunities.org/id/metropolitan-district-council/wolverhampton","ASDA SUPERSTORE","26.00","Whitmore Reans - CIN SWU S17","5411","Provisions (Not for resale)","22/10/2015"
"Wolverhampton City Council","http://opendatacommunities.org/id/metropolitan-district-council/wolverhampton","TRAINLINE","114.75","Adoption and Residence Team & Allowances","4112","Public Transport","22/10/2015"
"Wolverhampton City Council","http://opendatacommunities.org/id/metropolitan-district-council/wolverhampton","123-REG.CO.UK","43.06","Communications & Marketing - General","4816","Computing - Purchase of Software","22/10/2015"
"Wolverhampton City Council","http://opendatacommunities.org/id/metropolitan-district-council/wolverhampton","WWW.SEVERNTRENTSEARCHE","198.00","Legal Services","4900","Electricity","22/10/2015"
"Wolverhampton City Council","http://opendatacommunities.org/id/metropolitan-district-council/wolverhampton","BT BILL PAYMENT 1","83.03","Bilston Museum","4812","Comms - Telephone Rental","22/10/2015"
"Wolverhampton City Council","http://opendatacommunities.org/id/metropolitan-district-council/wolverhampton","POST OFFICE COUNTER","1.73","Community Enablement","9402","Comms - Postage","22/10/2015"
"Wolverhampton City Council","http://opendatacommunities.org/id/metropolitan-district-council/wolverhampton","TESCO STORES 5194","-13.50","Towers Outdoor Education Centre","5411","Provisions (Not for resale)","22/10/2015"
"Wolverhampton City Council","http://opendatacommunities.org/id/metropolitan-district-council/wolverhampton","HMCOURTS-SERVICE.G","15.00","Alfred Squire - CIN SWU S17","9222","Services - Fees and Charges","22/10/2015"
"Wolverhampton City Council","http://opendatacommunities.org/id/metropolitan-district-council/wolverhampton","OFFICE DEPOT","21.20","Community Enablement","5111","Stationery","22/10/2015"
"Wolverhampton City Council","http://opendatacommunities.org/id/metropolitan-district-council/wolverhampton","RAYTON ELECT WSALERS L","103.98","Northicote Farm","5999","Equipment - Purchase","22/10/2015"
"Wolverhampton City Council","http://opendatacommunities.org/id/metropolitan-district-council/wolverhampton","TRAINLINE","51.92","Adoption and Residence Team & Allowances","4112","Public Transport","22/10/2015"
"Wolverhampton City Council","http://opendatacommunities.org/id/metropolitan-district-council/wolverhampton","ASDA SUPERSTORE","13.50","Whitmore Reans - CIN SWU S17","5411","Provisions (Not for resale)","22/10/2015"
"Wolverhampton City Council","http://opendatacommunities.org/id/metropolitan-district-council/wolverhampton","OFFICE DEPOT","35.44","Wolverhampton Indoor and Open Market","5111","Stationery","22/10/2015"
"Wolverhampton City Council","http://opendatacommunities.org/id/metropolitan-district-council/wolverhampton","OFFICE DEPOT","-58.44","Children's Village Children Centre","5111","Stationery","22/10/2015"
"Wolverhampton City Council","http://opendatacommunities.org/id/metropolitan-district-council/wolverhampton","THE FLOWER SHOP","30.00","Graiseley - CIN SWU S17","5992","Provisions (Not for resale)","22/10/2015"
"Wolverhampton City Council","http://opendatacommunities.org/id/metropolitan-district-council/wolverhampton","BROADWAITH","172.06","Towers Outdoor Education Centre","5651","Services - Supplies & Services to users","22/10/2015"
"Wolverhampton City Council","http://opendatacommunities.org/id/metropolitan-district-council/wolverhampton","WEST COAST TRAINS","104.95","SWABA - CIN SWU S17","4112","Public Transport","22/10/2015"
"Wolverhampton City Council","http://opendatacommunities.org/id/metropolitan-district-council/wolverhampton","POST OFFICE COUNTER","63.00","Valley Park - CIN SWU S17","9402","Comms - Postage","22/10/2015"
"Wolverhampton City Council","http://opendatacommunities.org/id/metropolitan-district-council/wolverhampton","WWW.WHITECHAPELGALLERY","25.00","Art Gallery","5971","Services - Professional Fees","22/10/2015"
"Wolverhampton City Council","http://opendatacommunities.org/id/metropolitan-district-council/wolverhampton","CARVER/WOLVERHAMPTON/L","177.13","Northicote Farm","5211","Materials","22/10/2015"
"Wolverhampton City Council","http://opendatacommunities.org/id/metropolitan-district-council/wolverhampton","TRAINLINE","73.13","Legal Services","4112","Public Transport","22/10/2015"
"Wolverhampton City Council","http://opendatacommunities.org/id/metropolitan-district-council/wolverhampton","TRAINLINE","157.49","LAC Education Team (LACE)","4112","Public Transport","22/10/2015"
"Wolverhampton City Council","http://opendatacommunities.org/id/metropolitan-district-council/wolverhampton","WP-THE CRATFS COUNCIL","34.00","Audience R & D","8398","Subscriptions","22/10/2015"
"Wolverhampton City Council","http://opendatacommunities.org/id/metropolitan-district-council/wolverhampton","ROYAL MAIL  0845606040","2.00","Revenues","9402","Comms - Postage","22/10/2015"
"Wolverhampton City Council","http://opendatacommunities.org/id/metropolitan-district-council/wolverhampton","Amazon UK Marketplace","9.68","Telecare","5942","Equipment - Purchase","22/10/2015"
"Wolverhampton City Council","http://opendatacommunities.org/id/metropolitan-district-council/wolverhampton","OFFICE DEPOT","80.98","Service Wide","5111","Stationery","22/10/2015"
"Wolverhampton City Council","http://opendatacommunities.org/id/metropolitan-district-council/wolverhampton","ASDA SUPERSTORE","13.50","Whitmore Reans - CIN SWU S17","5411","Provisions (Not for resale)","22/10/2015"
"Wolverhampton City Council","http://opendatacommunities.org/id/metropolitan-district-council/wolverhampton","WAITROSE 696","22.68","MAST 3 - Graiseley","5411","Comms - Postage","22/10/2015"
"Wolverhampton City Council","http://opendatacommunities.org/id/metropolitan-district-council/wolverhampton","COMBINED COURT","2260.00","Legal Services","9222","Services - Fees and Charges","22/10/2015"
"Wolverhampton City Council","http://opendatacommunities.org/id/metropolitan-district-council/wolverhampton","RYMAN","4.48","Emergency Duty Team","5943","Stationery","22/10/2015"
"Wolverhampton City Council","http://opendatacommunities.org/id/metropolitan-district-council/wolverhampton","THE COAL AUTHORITY","34.80","Legal Services","9399","Services - Fees and Charges","22/10/2015"
"Wolverhampton City Council","http://opendatacommunities.org/id/metropolitan-district-council/wolverhampton","TRAINLINE","44.17","Art Gallery","4112","Public Transport","22/10/2015"
"Wolverhampton City Council","http://opendatacommunities.org/id/metropolitan-district-council/wolverhampton","WWW.A2ZFIRE.CO.UK","28.45","Central Baths","4816","Equipment - Purchase","22/10/2015"
"Wolverhampton City Council","http://opendatacommunities.org/id/metropolitan-district-council/wolverhampton","TRAINLINE","57.63","Art Gallery","4112","Public Transport","22/10/2015"
"Wolverhampton City Council","http://opendatacommunities.org/id/metropolitan-district-council/wolverhampton","HOMEBASE LTD 197","2.52","Towers Outdoor Education Centre","5211","Materials","22/10/2015"
"Wolverhampton City Council","http://opendatacommunities.org/id/metropolitan-district-council/wolverhampton","VIRGIN MEDIA PYMTS","24.23","Bilston Museum","4814","Comms - Telephone Rental","22/10/2015"
"Wolverhampton City Council","http://opendatacommunities.org/id/metropolitan-district-council/wolverhampton","OFFICE DEPOT","3.36","Ground Maintenance Overheads","5111","Stationery","22/10/2015"
"Wolverhampton City Council","http://opendatacommunities.org/id/metropolitan-district-council/wolverhampton","OFFICE DEPOT","-62.49","Youth Offending Team","5111","Stationery","22/10/2015"
"Wolverhampton City Council","http://opendatacommunities.org/id/metropolitan-district-council/wolverhampton","OFFICE DEPOT","13.49","Delivery & OCE Development","5111","Stationery","22/10/2015"
"Wolverhampton City Council","http://opendatacommunities.org/id/metropolitan-district-council/wolverhampton","TRAINLINE","29.12","Looked After Team 1","4112","Public Transport","22/10/2015"
"Wolverhampton City Council","http://opendatacommunities.org/id/metropolitan-district-council/wolverhampton","CARVER/WOLVERHAMPTON/L","27.34","Ground Maintenance East","5211","Materials","22/10/2015"
"Wolverhampton City Council","http://opendatacommunities.org/id/metropolitan-district-council/wolverhampton","LIVERPOOL DIR SIA","220.00","Traffic Signals","7393","Computing - Purchase of Hardware","22/10/2015"
"Wolverhampton City Council","http://opendatacommunities.org/id/metropolitan-district-council/wolverhampton","RAINBOW CATERING EQUIP","56.70","Towers Outdoor Education Centre","5999","Equipment - Purchase","22/10/2015"
"Wolverhampton City Council","http://opendatacommunities.org/id/metropolitan-district-council/wolverhampton","WM MORRISON 024","8.00","Civic Centre Catering","5411","Provisions (Not for resale)","21/10/2015"
"Wolverhampton City Council","http://opendatacommunities.org/id/metropolitan-district-council/wolverhampton","WEST COAST TRAINS","183.00","City Direct","4112","Public Transport","21/10/2015"
"Wolverhampton City Council","http://opendatacommunities.org/id/metropolitan-district-council/wolverhampton","ASDA HOME SHOPPING","57.99","Ernest Bold Court","5411","Provisions (Not for resale)","21/10/2015"
"Wolverhampton City Council","http://opendatacommunities.org/id/metropolitan-district-council/wolverhampton","G & M HALE LTD","114.10","Discretionary Fund","5992","Materials","21/10/2015"
"Wolverhampton City Council","http://opendatacommunities.org/id/metropolitan-district-council/wolverhampton","ASDA HOME SHOPPING","0.34","Swan Bank","5411","Provisions (Not for resale)","21/10/2015"
"Wolverhampton City Council","http://opendatacommunities.org/id/metropolitan-district-council/wolverhampton","OFFICE DEPOT","35.68","Physical & Sensory Disabilities Mgmt","5111","Stationery","21/10/2015"
"Wolverhampton City Council","http://opendatacommunities.org/id/metropolitan-district-council/wolverhampton","ASDA HOME SHOPPING","40.98","Swan Bank","5411","Provisions (Not for resale)","21/10/2015"
"Wolverhampton City Council","http://opendatacommunities.org/id/metropolitan-district-council/wolverhampton","TRAINLINE","359.14","Fostering Team & Allowances","4112","Public Transport","21/10/2015"
"Wolverhampton City Council","http://opendatacommunities.org/id/metropolitan-district-council/wolverhampton","WEEBLY-CHARGE.COM","106.26","Technical Support","4816","Computing - Purchase of Software","21/10/2015"
"Wolverhampton City Council","http://opendatacommunities.org/id/metropolitan-district-council/wolverhampton","POST OFFICE COUNTER","301.54","Adoption and Residence Team & Allowances","9402","Comms - Postage","21/10/2015"
"Wolverhampton City Council","http://opendatacommunities.org/id/metropolitan-district-council/wolverhampton","CT WOLVERHAMPTON","32.50","Whitmore Reans - CIN SWU S17","8398","Services - Supplies & Services to users","21/10/2015"
"Wolverhampton City Council","http://opendatacommunities.org/id/metropolitan-district-council/wolverhampton","ETHORPE HOTEL H","472.84","Adoption and Residence Team & Allowances","7011","Accommodation Costs","21/10/2015"
"Wolverhampton City Council","http://opendatacommunities.org/id/metropolitan-district-council/wolverhampton","Cross Country","7.50","Commissioning Disabilities","4112","Public Transport","21/10/2015"
"Wolverhampton City Council","http://opendatacommunities.org/id/metropolitan-district-council/wolverhampton","POST OFFICE COUNTER","173.00","Adoption and Residence Team & Allowances","9402","Comms - Postage","21/10/2015"
"Wolverhampton City Council","http://opendatacommunities.org/id/metropolitan-district-council/wolverhampton","REDWINGS LODGE","99.87","Bingley - CIN SWU S17","7011","Accommodation Costs","21/10/2015"
"Wolverhampton City Council","http://opendatacommunities.org/id/metropolitan-district-council/wolverhampton","OFFICE DEPOT","130.48","Ground Maintenance Overheads","5111","Stationery","21/10/2015"
"Wolverhampton City Council","http://opendatacommunities.org/id/metropolitan-district-council/wolverhampton","CENTURY ELECTRICAL WHO","12.00","Caretakers Community Centre","5065","Equipment - R & M","21/10/2015"
"Wolverhampton City Council","http://opendatacommunities.org/id/metropolitan-district-council/wolverhampton","BRITANNIA","324.50","Avenues - CIN SWU S17","7011","Services - Supplies & Services to users","21/10/2015"
"Wolverhampton City Council","http://opendatacommunities.org/id/metropolitan-district-council/wolverhampton","B & Q","18.47","Creative Studies Delivery Area","5211","Materials","21/10/2015"
"Wolverhampton City Council","http://opendatacommunities.org/id/metropolitan-district-council/wolverhampton","OFFICE DEPOT","5.12","Global Budgets","5111","Stationery","21/10/2015"
"Wolverhampton City Council","http://opendatacommunities.org/id/metropolitan-district-council/wolverhampton","Virgintrains.co.uk","106.30","Welfare Rights","4112","Public Transport","21/10/2015"
"Wolverhampton City Council","http://opendatacommunities.org/id/metropolitan-district-council/wolverhampton","Amazon EU","-6.51","Merry Hill House","5969","Equipment - Purchase","21/10/2015"
"Wolverhampton City Council","http://opendatacommunities.org/id/metropolitan-district-council/wolverhampton","TRAINLINE","18.82","SEN Special Education Admin","4112","Public Transport","21/10/2015"
"Wolverhampton City Council","http://opendatacommunities.org/id/metropolitan-district-council/wolverhampton","LICENSING SERVICES","165.00","Civic Hall Out-house Promotions","8299","Services - General Licences","21/10/2015"
"Wolverhampton City Council","http://opendatacommunities.org/id/metropolitan-district-council/wolverhampton","TFM FARM & COUNTRY SUP","90.84","Northicote Farm","5399","Equipment - Purchase","21/10/2015"
"Wolverhampton City Council","http://opendatacommunities.org/id/metropolitan-district-council/wolverhampton","SAINSBURYS SACAT 2040","2.00","Mayoral Expenses","5411","Hospitality","21/10/2015"
"Wolverhampton City Council","http://opendatacommunities.org/id/metropolitan-district-council/wolverhampton","B & Q","10.75","Caretakers Community Centre","5211","R&M - Departmental planned (external)","21/10/2015"
"Wolverhampton City Council","http://opendatacommunities.org/id/metropolitan-district-council/wolverhampton","HOME LEISURE DIRECT LT","508.28","Towers Outdoor Education Centre","5941","Equipment - Purchase","21/10/2015"
"Wolverhampton City Council","http://opendatacommunities.org/id/metropolitan-district-council/wolverhampton","BARCLAYS BANK PLC","250.00","Priory Green - CIN SWU S17","6011","Financial Assistance In Exceptional Circ","21/10/2015"
"Wolverhampton City Council","http://opendatacommunities.org/id/metropolitan-district-council/wolverhampton","G & M HALE LTD","117.40","Creative Studies Delivery Area","5992","Materials for resale","21/10/2015"
"Wolverhampton City Council","http://opendatacommunities.org/id/metropolitan-district-council/wolverhampton","ASDA HOME SHOPPING","-0.03","Ernest Bold Court","5411","Provisions (Not for resale)","21/10/2015"
"Wolverhampton City Council","http://opendatacommunities.org/id/metropolitan-district-council/wolverhampton","BLAS AR FWYD CYF","126.60","Towers Outdoor Education Centre","5812","Educ Trips, Holidays, Outings, Activity","21/10/2015"
"Wolverhampton City Council","http://opendatacommunities.org/id/metropolitan-district-council/wolverhampton","G & M HALE (SUNDRIES)","23.00","Discretionary Fund","5992","Materials","21/10/2015"
"Wolverhampton City Council","http://opendatacommunities.org/id/metropolitan-district-council/wolverhampton","WWW.POSTURITE.CO.UK","77.94","Safeguarding Children","5021","Furniture","21/10/2015"
"Wolverhampton City Council","http://opendatacommunities.org/id/metropolitan-district-council/wolverhampton","OFFICE DEPOT","2.85","Macmillan Welfare Rights","5111","Stationery","21/10/2015"
"Wolverhampton City Council","http://opendatacommunities.org/id/metropolitan-district-council/wolverhampton","CUMMINGS BROTHERS LOCK","7.92","Caretakers Community Centre","7399","R&M - Departmental planned (external)","21/10/2015"
"Wolverhampton City Council","http://opendatacommunities.org/id/metropolitan-district-council/wolverhampton","Amazon UK Marketplace","13.32","Telecare","5942","Equipment - Purchase","21/10/2015"
"Wolverhampton City Council","http://opendatacommunities.org/id/metropolitan-district-council/wolverhampton","TESCO STORES 5194","178.66","Towers Outdoor Education Centre","5411","Provisions (Not for resale)","21/10/2015"
"Wolverhampton City Council","http://opendatacommunities.org/id/metropolitan-district-council/wolverhampton","GREENLAND GARDEN C","37.47","Northicote Farm","5261","Equipment - Purchase","21/10/2015"
"Wolverhampton City Council","http://opendatacommunities.org/id/metropolitan-district-council/wolverhampton","THE COAL AUTHORITY","82.80","Legal Services","9399","Services - Fees and Charges","21/10/2015"
"Wolverhampton City Council","http://opendatacommunities.org/id/metropolitan-district-council/wolverhampton","FISHPOND CO NZ","38.60","Adoption and Residence Team & Allowances","5942","Books","21/10/2015"
"Wolverhampton City Council","http://opendatacommunities.org/id/metropolitan-district-council/wolverhampton","PO LOW HILL 1592","150.00","46a, Second Avenue, Low Hill","6011","Financial Assistance In Exceptional Circ","21/10/2015"
"Wolverhampton City Council","http://opendatacommunities.org/id/metropolitan-district-council/wolverhampton","CARE SHOP","212.94","Specialist Support Service - North","5999","Cleaning Supplies and Materials","21/10/2015"
"Wolverhampton City Council","http://opendatacommunities.org/id/metropolitan-district-council/wolverhampton","WWW.COINADRINK.CO.UK","44.33","Bilston Museum","5811","Materials for resale","21/10/2015"
"Wolverhampton City Council","http://opendatacommunities.org/id/metropolitan-district-council/wolverhampton","Amazon EU","25.90","Adoption and Residence Team & Allowances","5969","Books","21/10/2015"
"Wolverhampton City Council","http://opendatacommunities.org/id/metropolitan-district-council/wolverhampton","Amazon UK Marketplace","22.14","Global Budgets","5942","Books","21/10/2015"
"Wolverhampton City Council","http://opendatacommunities.org/id/metropolitan-district-council/wolverhampton","BIGLIETTERIE       332","18.81","Black Art Movement","7922","Educ Trips, Holidays, Outings, Activity","21/10/2015"
"Wolverhampton City Council","http://opendatacommunities.org/id/metropolitan-district-council/wolverhampton","WEST COAST TRAINS","40.60","Looked After Team 1","4112","Public Transport","20/10/2015"
"Wolverhampton City Council","http://opendatacommunities.org/id/metropolitan-district-council/wolverhampton","COMBINED COURT","280.00","Legal Services","9222","Services - Fees and Charges","20/10/2015"
"Wolverhampton City Council","http://opendatacommunities.org/id/metropolitan-district-council/wolverhampton","Amazon UK Marketplace","29.77","Aldersley Leisure Village","5942","Equipment - Purchase","20/10/2015"
"Wolverhampton City Council","http://opendatacommunities.org/id/metropolitan-district-council/wolverhampton","Virgintrains.co.uk","44.00","Looked After Team 1","4112","Public Transport","20/10/2015"
"Wolverhampton City Council","http://opendatacommunities.org/id/metropolitan-district-council/wolverhampton","Virgintrains.co.uk","63.45","Looked After Team 2","4112","Public Transport","20/10/2015"
"Wolverhampton City Council","http://opendatacommunities.org/id/metropolitan-district-council/wolverhampton","Virgintrains.co.uk","129.95","Looked After Team 2","4112","Public Transport","20/10/2015"
"Wolverhampton City Council","http://opendatacommunities.org/id/metropolitan-district-council/wolverhampton","BARCLAYS BANK PLC","250.00","Valley Park - CIN SWU S17","6011","Financial Assistance In Exceptional Circ","20/10/2015"
"Wolverhampton City Council","http://opendatacommunities.org/id/metropolitan-district-council/wolverhampton","Amazon UK Marketplace","22.29","Children's Village Children Centre","5942","Books","20/10/2015"
"Wolverhampton City Council","http://opendatacommunities.org/id/metropolitan-district-council/wolverhampton","123-REG.CO.UK","20.94","Customer Services","4816","Computing - Purchase of Software","20/10/2015"
"Wolverhampton City Council","http://opendatacommunities.org/id/metropolitan-district-council/wolverhampton","REDWINGS LODGE","7.65","Referral Team CIN - S17","7011","Services - Supplies & Services to users","20/10/2015"
"Wolverhampton City Council","http://opendatacommunities.org/id/metropolitan-district-council/wolverhampton","OFFICE DEPOT","54.58","Ernest Bold Court","5111","Stationery","20/10/2015"
"Wolverhampton City Council","http://opendatacommunities.org/id/metropolitan-district-council/wolverhampton","WWW.CRAFTLAMPS.CO.UK","229.17","Discretionary Fund","5947","Equipment - Purchase","20/10/2015"
"Wolverhampton City Council","http://opendatacommunities.org/id/metropolitan-district-council/wolverhampton","ASDA HOME SHOPPING","205.74","Upper Pendeford Farm Childrens Home","5411","Provisions (Not for resale)","20/10/2015"
"Wolverhampton City Council","http://opendatacommunities.org/id/metropolitan-district-council/wolverhampton","MARKS & SPENCER","450.00","Fostering Team & Allowances","5411","Provisions (Not for resale)","20/10/2015"
"Wolverhampton City Council","http://opendatacommunities.org/id/metropolitan-district-council/wolverhampton","OFFICE DEPOT","12.63","Welfare Rights","5111","Stationery","20/10/2015"
"Wolverhampton City Council","http://opendatacommunities.org/id/metropolitan-district-council/wolverhampton","ASDA HOME SHOPPING","1.97","Upper Pendeford Farm Childrens Home","5411","Provisions (Not for resale)","20/10/2015"
"Wolverhampton City Council","http://opendatacommunities.org/id/metropolitan-district-council/wolverhampton","Amazon UK Marketplace","19.30","Global Budgets","5942","Books","20/10/2015"
"Wolverhampton City Council","http://opendatacommunities.org/id/metropolitan-district-council/wolverhampton","CUMMINGS BROTHERS LOCK","41.90","Caretakers Community Centre","7399","R&M - Departmental planned (external)","20/10/2015"
"Wolverhampton City Council","http://opendatacommunities.org/id/metropolitan-district-council/wolverhampton","WM MORRISON 024","29.62","Civic Centre Catering","5411","Provisions (Not for resale)","20/10/2015"
"Wolverhampton City Council","http://opendatacommunities.org/id/metropolitan-district-council/wolverhampton","LOVE2SHOP.CO.UK","123.50","Public Health Commissioning","8641","Gratuities","20/10/2015"
"Wolverhampton City Council","http://opendatacommunities.org/id/metropolitan-district-council/wolverhampton","TESCO STORE 3414","26.98","Children & Young People Support Costs","5411","Provisions (Not for resale)","20/10/2015"
"Wolverhampton City Council","http://opendatacommunities.org/id/metropolitan-district-council/wolverhampton","O E METCALFE","311.82","Towers Outdoor Education Centre","5499","Catering","20/10/2015"
"Wolverhampton City Council","http://opendatacommunities.org/id/metropolitan-district-council/wolverhampton","WM MORRISON 024","4.19","MAST 2 - Bilston","5411","Catering","20/10/2015"
"Wolverhampton City Council","http://opendatacommunities.org/id/metropolitan-district-council/wolverhampton","Amazon UK Marketplace","10.78","Children's Village Children Centre","5942","Books","20/10/2015"
"Wolverhampton City Council","http://opendatacommunities.org/id/metropolitan-district-council/wolverhampton","REGISTRARS OFFICE","29.00","Legal Services","8299","Training Expenses","20/10/2015"
"Wolverhampton City Council","http://opendatacommunities.org/id/metropolitan-district-council/wolverhampton","SAINSBURYS (2340)","65.18","Discretionary Fund","5411","Provisions (Not for resale)","20/10/2015"
"Wolverhampton City Council","http://opendatacommunities.org/id/metropolitan-district-council/wolverhampton","TESCO DELIVERY SAVER2","2.50","Towers Outdoor Education Centre","5968","Subscriptions","20/10/2015"
"Wolverhampton City Council","http://opendatacommunities.org/id/metropolitan-district-council/wolverhampton","TESCO STORES 6727","2.75","Restorative Justice","5411","Hospitality","20/10/2015"
"Wolverhampton City Council","http://opendatacommunities.org/id/metropolitan-district-council/wolverhampton","WWW.LAWNMOWERSDIRECT.","94.99","Cleaning of Buildings - General","5261","Equipment - Purchase","20/10/2015"
"Wolverhampton City Council","http://opendatacommunities.org/id/metropolitan-district-council/wolverhampton","REDWINGS LODGE","44.95","Referral Team CIN - S17","7011","Services - Supplies & Services to users","20/10/2015"
"Wolverhampton City Council","http://opendatacommunities.org/id/metropolitan-district-council/wolverhampton","MARKS & SPENCER","420.00","Fostering Team & Allowances","5411","Provisions (Not for resale)","20/10/2015"
"Wolverhampton City Council","http://opendatacommunities.org/id/metropolitan-district-council/wolverhampton","WALSALL COUNCIL","22.00","Graiseley - CIN SWU S17","9399","Services - Fees and Charges","20/10/2015"
"Wolverhampton City Council","http://opendatacommunities.org/id/metropolitan-district-council/wolverhampton","ITUNES.COM/BILL","66.50","Technical Support","5735","Computing - Purchase of Software","20/10/2015"
"Wolverhampton City Council","http://opendatacommunities.org/id/metropolitan-district-council/wolverhampton","THE POST OFFICE","7.25","Warstones - CIN SWU S17","9402","Comms - Postage","19/10/2015"
"Wolverhampton City Council","http://opendatacommunities.org/id/metropolitan-district-council/wolverhampton","Virgintrains.co.uk","211.17","Head of Service - LAC","4112","Public Transport","19/10/2015"
"Wolverhampton City Council","http://opendatacommunities.org/id/metropolitan-district-council/wolverhampton","WWW.IRONMONGERYDIRECT.","179.00","SEN Early Years Team","5231","Materials","19/10/2015"
"Wolverhampton City Council","http://opendatacommunities.org/id/metropolitan-district-council/wolverhampton","CUMMINGS BROTHERS LOCK","15.00","Swan Bank","7399","Equipment - Purchase","19/10/2015"
"Wolverhampton City Council","http://opendatacommunities.org/id/metropolitan-district-council/wolverhampton","TESCO STORES 3414","14.05","Delivery & OCE Development","5411","Provisions (Not for resale)","19/10/2015"
"Wolverhampton City Council","http://opendatacommunities.org/id/metropolitan-district-council/wolverhampton","THE POST OFFICE","1.73","Duke Street Bungalows","9402","Comms - Postage","19/10/2015"
"Wolverhampton City Council","http://opendatacommunities.org/id/metropolitan-district-council/wolverhampton","OFFICE DEPOT","305.83","Global Budgets","5111","Stationery","19/10/2015"
"Wolverhampton City Council","http://opendatacommunities.org/id/metropolitan-district-council/wolverhampton","WILKO RETAIL LIMIT","20.21","College of Further Education","5722","Equipment - Purchase","19/10/2015"
"Wolverhampton City Council","http://opendatacommunities.org/id/metropolitan-district-council/wolverhampton","ASDA HOME SHOPPING","-0.30","Ernest Bold Court","5411","Provisions (Not for resale)","19/10/2015"
"Wolverhampton City Council","http://opendatacommunities.org/id/metropolitan-district-council/wolverhampton","TRAINLINE","390.35","SEN Early Years Team","4112","Public Transport","19/10/2015"
"Wolverhampton City Council","http://opendatacommunities.org/id/metropolitan-district-council/wolverhampton","Amazon EU","14.95","Global Budgets","5969","Books","19/10/2015"
"Wolverhampton City Council","http://opendatacommunities.org/id/metropolitan-district-council/wolverhampton","REDWINGS LODGE","22.95","Referral Team CIN - S17","7011","Services - Supplies & Services to users","19/10/2015"
"Wolverhampton City Council","http://opendatacommunities.org/id/metropolitan-district-council/wolverhampton","SCREWFIX DIRECT","96.94","Independent Living Service","5211","Equipment - Health and Safety","19/10/2015"
"Wolverhampton City Council","http://opendatacommunities.org/id/metropolitan-district-council/wolverhampton","WILKO RETAIL LIMIT","32.27","College of Further Education","5722","Equipment - Purchase","19/10/2015"
"Wolverhampton City Council","http://opendatacommunities.org/id/metropolitan-district-council/wolverhampton","ITUNES.COM/BILL","0.79","Civic Halls Non Direct Management A/C","5735","Computing - Purchase of Software","19/10/2015"
"Wolverhampton City Council","http://opendatacommunities.org/id/metropolitan-district-council/wolverhampton","WWW.WESTMINSTER-BRIEFI","258.00","Youth Offending Team","8244","Conference Expenses","19/10/2015"
"Wolverhampton City Council","http://opendatacommunities.org/id/metropolitan-district-council/wolverhampton","FACEBOOK 287R98SB92","600.00","Communications & Marketing - General","7311","Marketing \ Non-staff advertising","19/10/2015"
"Wolverhampton City Council","http://opendatacommunities.org/id/metropolitan-district-council/wolverhampton","Amazon UK Marketplace","67.78","College of Further Education","5942","Computing - Consumables","19/10/2015"
"Wolverhampton City Council","http://opendatacommunities.org/id/metropolitan-district-council/wolverhampton","ARGOS DIRECT","185.86","Bilston 1 - CIN SWU S17","5310","Equipment - Purchase","19/10/2015"
"Wolverhampton City Council","http://opendatacommunities.org/id/metropolitan-district-council/wolverhampton","Amazon Svcs Europe,SAR","27.80","Children's Village Children Centre","5942","Books","19/10/2015"
"Wolverhampton City Council","http://opendatacommunities.org/id/metropolitan-district-council/wolverhampton","ASDA HOME SHOPPING","60.35","Ernest Bold Court","5411","Provisions (Not for resale)","19/10/2015"
"Wolverhampton City Council","http://opendatacommunities.org/id/metropolitan-district-council/wolverhampton","TRAINLINE","21.21","LAC Transitions Team","4112","Public Transport","19/10/2015"
"Wolverhampton City Council","http://opendatacommunities.org/id/metropolitan-district-council/wolverhampton","Amazon UK Marketplace","2.80","Global Budgets","5942","Books","19/10/2015"
"Wolverhampton City Council","http://opendatacommunities.org/id/metropolitan-district-council/wolverhampton","WISEPOPS.COM","32.58","City Direct","7372","Computing - Purchase of Software","19/10/2015"
"Wolverhampton City Council","http://opendatacommunities.org/id/metropolitan-district-council/wolverhampton","REDWINGS LODGE","124.85","Referral Team CIN - S17","7011","Services - Supplies & Services to users","19/10/2015"
"Wolverhampton City Council","http://opendatacommunities.org/id/metropolitan-district-council/wolverhampton","Amazon UK Marketplace","52.71","Children's Village Children Centre","5942","Books","19/10/2015"
"Wolverhampton City Council","http://opendatacommunities.org/id/metropolitan-district-council/wolverhampton","ASDA SUPERSTORE","74.63","Swan Bank","5411","Provisions (Not for resale)","19/10/2015"
"Wolverhampton City Council","http://opendatacommunities.org/id/metropolitan-district-council/wolverhampton","Virgintrains.co.uk","171.00","Economic Development","4112","Public Transport","19/10/2015"
"Wolverhampton City Council","http://opendatacommunities.org/id/metropolitan-district-council/wolverhampton","BT BILL PAYMENT 1","305.31","Civic Halls Non Direct Management A/C","4812","Comms - Mobile Telephones","19/10/2015"
"Wolverhampton City Council","http://opendatacommunities.org/id/metropolitan-district-council/wolverhampton","Amazon UK Marketplace","10.83","LAC Transitions Team","5942","Educ Trips, Holidays, Outings, Activity","19/10/2015"
"Wolverhampton City Council","http://opendatacommunities.org/id/metropolitan-district-council/wolverhampton","Amazon EU","59.92","School Improvement","5969","Equipment - Purchase","19/10/2015"
"Wolverhampton City Council","http://opendatacommunities.org/id/metropolitan-district-council/wolverhampton","Amazon EU","3.85","Global Budgets","5969","Books","19/10/2015"
"Wolverhampton City Council","http://opendatacommunities.org/id/metropolitan-district-council/wolverhampton","CUMMINGS BROTHERS LOCK","5.00","Swan Bank","7399","Equipment - Purchase","19/10/2015"
"Wolverhampton City Council","http://opendatacommunities.org/id/metropolitan-district-council/wolverhampton","Amazon EU","13.48","Global Budgets","5969","Books","19/10/2015"
"Wolverhampton City Council","http://opendatacommunities.org/id/metropolitan-district-council/wolverhampton","PRESTIGE PRINT","1653.60","Civic Halls Non Direct Management A/C","2741","Stationery","19/10/2015"
"Wolverhampton City Council","http://opendatacommunities.org/id/metropolitan-district-council/wolverhampton","WWW.UKSMOBILITY.CO.UK","392.11","Physical & Sensory Disabilities Mgmt","5999","Equipment - Purchase","19/10/2015"
"Wolverhampton City Council","http://opendatacommunities.org/id/metropolitan-district-council/wolverhampton","OFFICE DEPOT","26.90","SEN Early Years Team","5111","Stationery","19/10/2015"
"Wolverhampton City Council","http://opendatacommunities.org/id/metropolitan-district-council/wolverhampton","Virgintrains.co.uk","-56.00","Members Expenses","4112","Public Transport","19/10/2015"
"Wolverhampton City Council","http://opendatacommunities.org/id/metropolitan-district-council/wolverhampton","TRAINLINE","117.91","Looked After Team 1","4112","Public Transport","19/10/2015"
"Wolverhampton City Council","http://opendatacommunities.org/id/metropolitan-district-council/wolverhampton","BLS SHAREGATE","2238.02","Customer Services","5734","Computing - Purchase of Software","19/10/2015"
"Wolverhampton City Council","http://opendatacommunities.org/id/metropolitan-district-council/wolverhampton","Wix.com","46.57","Technical Support","5817","Computing - Purchase of Software","19/10/2015"
"Wolverhampton City Council","http://opendatacommunities.org/id/metropolitan-district-council/wolverhampton","OFFICE DEPOT","408.84","SEN Early Years Team","5111","Stationery","19/10/2015"
"Wolverhampton City Council","http://opendatacommunities.org/id/metropolitan-district-council/wolverhampton","TRAINLINE","83.13","Looked After Team 1","4112","Public Transport","19/10/2015"
"Wolverhampton City Council","http://opendatacommunities.org/id/metropolitan-district-council/wolverhampton","W M MORRISON PLC","87.14","Blakenhall Commty & Healthy Living Ctr","5411","Provisions (Resale)","19/10/2015"
"Wolverhampton City Council","http://opendatacommunities.org/id/metropolitan-district-council/wolverhampton","TRAINLINE","147.70","Looked After Team 1","4112","Public Transport","19/10/2015"
"Wolverhampton City Council","http://opendatacommunities.org/id/metropolitan-district-council/wolverhampton","C L JONES LIMITED","55.91","Towers Outdoor Education Centre","5211","Equipment - Purchase","19/10/2015"
"Wolverhampton City Council","http://opendatacommunities.org/id/metropolitan-district-council/wolverhampton","B&M RETAIL","18.89","LAC Transitions Team","5310","Equipment - Purchase","19/10/2015"
"Wolverhampton City Council","http://opendatacommunities.org/id/metropolitan-district-council/wolverhampton","LOVE2SHOP.CO.UK","89.58","LAC Transitions Team","8641","Educ Trips, Holidays, Outings, Activity","19/10/2015"
"Wolverhampton City Council","http://opendatacommunities.org/id/metropolitan-district-council/wolverhampton","Amazon UK Marketplace","17.30","Children's Village Children Centre","5942","Books","19/10/2015"
"Wolverhampton City Council","http://opendatacommunities.org/id/metropolitan-district-council/wolverhampton","BRITANNIA","172.92","LAC Transitions Team","7011","Services - Supplies & Services to users","16/10/2015"
"Wolverhampton City Council","http://opendatacommunities.org/id/metropolitan-district-council/wolverhampton","THE TILL ROLL CO LTD","123.54","Civic Hall Administration Overhead Acct","5943","Stationery","16/10/2015"
"Wolverhampton City Council","http://opendatacommunities.org/id/metropolitan-district-council/wolverhampton","WM MORRISONS","4.42","MAST - Central Team","5411","Provisions (Not for resale)","16/10/2015"
"Wolverhampton City Council","http://opendatacommunities.org/id/metropolitan-district-council/wolverhampton","ARGOS DIRECT","148.93","Bilston 1 - CIN SWU S17","5310","Equipment - Purchase","16/10/2015"
"Wolverhampton City Council","http://opendatacommunities.org/id/metropolitan-district-council/wolverhampton","HEARTLANDS FURNITURE W","105.00","LAC Transitions Team","5712","Accommodation Costs","16/10/2015"
"Wolverhampton City Council","http://opendatacommunities.org/id/metropolitan-district-council/wolverhampton","TESCO STORES 6727","6.90","Restorative Justice","5411","Hospitality","16/10/2015"
"Wolverhampton City Council","http://opendatacommunities.org/id/metropolitan-district-council/wolverhampton","Amazon UK Marketplace","9.97","College of Further Education","5942","Computing - Consumables","16/10/2015"
"Wolverhampton City Council","http://opendatacommunities.org/id/metropolitan-district-council/wolverhampton","INSPECTLET.COM","52.46","City Direct","5734","Computing - Purchase of Software","16/10/2015"
"Wolverhampton City Council","http://opendatacommunities.org/id/metropolitan-district-council/wolverhampton","Amazon UK Marketplace","118.27","College of Further Education","5942","Computing - Consumables","16/10/2015"
"Wolverhampton City Council","http://opendatacommunities.org/id/metropolitan-district-council/wolverhampton","OFFICE DEPOT","62.49","Youth Offending Team","5111","Stationery","16/10/2015"
"Wolverhampton City Council","http://opendatacommunities.org/id/metropolitan-district-council/wolverhampton","Amazon UK Marketplace","56.66","Merry Hill House","5942","Equipment - Purchase","16/10/2015"
"Wolverhampton City Council","http://opendatacommunities.org/id/metropolitan-district-council/wolverhampton","ASDA SUPERSTORE","49.50","Graiseley - CIN SWU S17","5411","Provisions (Not for resale)","16/10/2015"
"Wolverhampton City Council","http://opendatacommunities.org/id/metropolitan-district-council/wolverhampton","Amazon UK Marketplace","208.95","Learning Technologies","5942","Computing - Purchase of Hardware","16/10/2015"
"Wolverhampton City Council","http://opendatacommunities.org/id/metropolitan-district-council/wolverhampton","Amazon UK Marketplace","56.66","Merry Hill House","5942","Equipment - Purchase","16/10/2015"
"Wolverhampton City Council","http://opendatacommunities.org/id/metropolitan-district-council/wolverhampton","OFFICE DEPOT","12.26","Assessment Team (West)","5111","Stationery","16/10/2015"
"Wolverhampton City Council","http://opendatacommunities.org/id/metropolitan-district-council/wolverhampton","BRITANNIA","133.33","Berries - CIN SWU S17","7011","Services - Supplies & Services to users","16/10/2015"
"Wolverhampton City Council","http://opendatacommunities.org/id/metropolitan-district-council/wolverhampton","Amazon UK Marketplace","56.66","Merry Hill House","5942","Equipment - Purchase","16/10/2015"
"Wolverhampton City Council","http://opendatacommunities.org/id/metropolitan-district-council/wolverhampton","WM MORRISON 024","50.00","LAC Transitions Team","5411","Educ Trips, Holidays, Outings, Activity","16/10/2015"
"Wolverhampton City Council","http://opendatacommunities.org/id/metropolitan-district-council/wolverhampton","SUITES AND BEDS","403.33","MAST 7 - Berrybrook","5712","Equipment - Purchase","16/10/2015"
"Wolverhampton City Council","http://opendatacommunities.org/id/metropolitan-district-council/wolverhampton","TRAVELODGE","210.00","Scrutiny & Transparency","3615","Accommodation Costs","16/10/2015"
"Wolverhampton City Council","http://opendatacommunities.org/id/metropolitan-district-council/wolverhampton","SAINSBURYS 2040","45.00","Duke Street Bungalows","5411","Cleaning Supplies and Materials","16/10/2015"
"Wolverhampton City Council","http://opendatacommunities.org/id/metropolitan-district-council/wolverhampton","CW TECHNOLOGIES (UK) L","200.11","Parks - East Area Management","5085","Equipment - Purchase","16/10/2015"
"Wolverhampton City Council","http://opendatacommunities.org/id/metropolitan-district-council/wolverhampton","NATIONALITY DIRECTORAT","749.00","Warstones - CIN SWU S17","9399","Services - Fees and Charges","16/10/2015"
"Wolverhampton City Council","http://opendatacommunities.org/id/metropolitan-district-council/wolverhampton","OFFICE DEPOT","88.47","Graiseley - CIN SWU S17","5111","Stationery","16/10/2015"
"Wolverhampton City Council","http://opendatacommunities.org/id/metropolitan-district-council/wolverhampton","FIRSTCHOICE CATERING S","50.70","Towers Outdoor Education Centre","5085","Fixtures and Fittings - Purchases","16/10/2015"
"Wolverhampton City Council","http://opendatacommunities.org/id/metropolitan-district-council/wolverhampton","COBOLT SYSTEMS LTD","36.65","SEN Sensory Inclusion","8043","Equipment - Purchase","16/10/2015"
"Wolverhampton City Council","http://opendatacommunities.org/id/metropolitan-district-council/wolverhampton","WWW.SOFMILITARY.CO.UK","257.98","Outdoor Events Admin","5999","Equipment - Purchase","16/10/2015"
"Wolverhampton City Council","http://opendatacommunities.org/id/metropolitan-district-council/wolverhampton","Q-SYSTEMS LIMITED","18.00","Catering Overhead Account","5999","Equipment - R & M","16/10/2015"
"Wolverhampton City Council","http://opendatacommunities.org/id/metropolitan-district-council/wolverhampton","WEST COAST TRAINS","70.00","Health Protection & NHS Facing","4112","Public Transport","16/10/2015"
"Wolverhampton City Council","http://opendatacommunities.org/id/metropolitan-district-council/wolverhampton","Amazon UK Marketplace","60.21","Merry Hill House","5942","Equipment - Purchase","16/10/2015"
"Wolverhampton City Council","http://opendatacommunities.org/id/metropolitan-district-council/wolverhampton","COMBINED COURT","280.00","Legal Services","9222","Services - Professional Fees","16/10/2015"
"Wolverhampton City Council","http://opendatacommunities.org/id/metropolitan-district-council/wolverhampton","WICKES","75.75","Northicote Farm","5211","Materials","16/10/2015"
"Wolverhampton City Council","http://opendatacommunities.org/id/metropolitan-district-council/wolverhampton","HOME & MOTORSAVE LIMIT","18.32","Specialist Support Service - North","5039","Equipment - R & M","15/10/2015"
"Wolverhampton City Council","http://opendatacommunities.org/id/metropolitan-district-council/wolverhampton","TICKETS","38.55","Black Art Movement","7922","Educ Trips, Holidays, Outings, Activity","15/10/2015"
"Wolverhampton City Council","http://opendatacommunities.org/id/metropolitan-district-council/wolverhampton","Virgintrains.co.uk","60.85","Black Art Movement","4112","Public Transport","15/10/2015"
"Wolverhampton City Council","http://opendatacommunities.org/id/metropolitan-district-council/wolverhampton","POUNDWORLD RETAIL","13.32","Revenues","5310","Equipment - Purchase","15/10/2015"
"Wolverhampton City Council","http://opendatacommunities.org/id/metropolitan-district-council/wolverhampton","WATERSTONES","6.00","Language Studies Delivery Area","5942","Books","15/10/2015"
"Wolverhampton City Council","http://opendatacommunities.org/id/metropolitan-district-council/wolverhampton","TOOLSTATION LTD","14.33","Parks - South West Area Management","5251","Equipment - Purchase","15/10/2015"
"Wolverhampton City Council","http://opendatacommunities.org/id/metropolitan-district-council/wolverhampton","FASTHOSTS INTERNET","4.78","Civic Halls Non Direct Management A/C","4816","Computing - Purchase of Software","15/10/2015"
"Wolverhampton City Council","http://opendatacommunities.org/id/metropolitan-district-council/wolverhampton","GRO HM PASSPORT OFFICE","46.80","Alfred Squire - CIN SWU S17","9399","Services - Fees and Charges","15/10/2015"
"Wolverhampton City Council","http://opendatacommunities.org/id/metropolitan-district-council/wolverhampton","TRUVOX INTERNATION","35.79","Service Wide","5099","Equipment - Purchase","15/10/2015"
"Wolverhampton City Council","http://opendatacommunities.org/id/metropolitan-district-council/wolverhampton","Amazon EU","6.51","Merry Hill House","5969","Equipment - Purchase","15/10/2015"
"Wolverhampton City Council","http://opendatacommunities.org/id/metropolitan-district-council/wolverhampton","TRAINLINE","137.70","Site Development Asset Management","4112","Public Transport","15/10/2015"
"Wolverhampton City Council","http://opendatacommunities.org/id/metropolitan-district-council/wolverhampton","WOLVES CC","129.00","Whitmore Reans - CIN SWU S17","9399","Services - Fees and Charges","15/10/2015"
"Wolverhampton City Council","http://opendatacommunities.org/id/metropolitan-district-council/wolverhampton","EMAP LTD-SUBSCRIPTIONS","161.10","Communications & Marketing - General","2741","Publications","15/10/2015"
"Wolverhampton City Council","http://opendatacommunities.org/id/metropolitan-district-council/wolverhampton","REGISTRARS OFFICE","232.00","Head of Service - CINCP","8299","Services - Professional Fees","15/10/2015"
"Wolverhampton City Council","http://opendatacommunities.org/id/metropolitan-district-council/wolverhampton","PAYPAL  SUNPOWERTEC","248.40","College of Further Education","5732","Equipment - Purchase","15/10/2015"
"Wolverhampton City Council","http://opendatacommunities.org/id/metropolitan-district-council/wolverhampton","TESCO STORE 3414","18.00","Children & Young People Support Costs","5411","Provisions (Not for resale)","15/10/2015"
"Wolverhampton City Council","http://opendatacommunities.org/id/metropolitan-district-council/wolverhampton","TESCO STORES 5194","245.73","Towers Outdoor Education Centre","5411","Provisions (Not for resale)","15/10/2015"
"Wolverhampton City Council","http://opendatacommunities.org/id/metropolitan-district-council/wolverhampton","NO 5 CHAMBERS LTD","50.00","Legal Services","8111","Training Expenses","15/10/2015"
"Wolverhampton City Council","http://opendatacommunities.org/id/metropolitan-district-council/wolverhampton","COUNTY COURT","50.00","Rents Management","9222","Services - Professional Fees","15/10/2015"
"Wolverhampton City Council","http://opendatacommunities.org/id/metropolitan-district-council/wolverhampton","Amazon UK Marketplace","12.68","Buisness Continuity & Emergency Planning","5942","Stationery","15/10/2015"
"Wolverhampton City Council","http://opendatacommunities.org/id/metropolitan-district-council/wolverhampton","OFFICE DEPOT","47.67","Safeguarding Children","5111","Stationery","15/10/2015"
"Wolverhampton City Council","http://opendatacommunities.org/id/metropolitan-district-council/wolverhampton","OFFICE DEPOT","11.80","Looked After Team 1","5111","Stationery","15/10/2015"
"Wolverhampton City Council","http://opendatacommunities.org/id/metropolitan-district-council/wolverhampton","SAINSBURYS 2040","11.67","Mayoral Expenses","5411","Hospitality","15/10/2015"
"Wolverhampton City Council","http://opendatacommunities.org/id/metropolitan-district-council/wolverhampton","POST OFFICE COUNTER","68.24","Towers Outdoor Education Centre","9402","Comms - Postage","15/10/2015"
"Wolverhampton City Council","http://opendatacommunities.org/id/metropolitan-district-council/wolverhampton","Amazon EU","28.04","College of Further Education","5969","Equipment - Purchase","15/10/2015"
"Wolverhampton City Council","http://opendatacommunities.org/id/metropolitan-district-council/wolverhampton","SAINSBURYS (2340)","18.35","Benefits","5411","Provisions (Not for resale)","15/10/2015"
"Wolverhampton City Council","http://opendatacommunities.org/id/metropolitan-district-council/wolverhampton","TRAINLINE","134.13","Adoption and Residence Team & Allowances","4112","Public Transport","15/10/2015"
"Wolverhampton City Council","http://opendatacommunities.org/id/metropolitan-district-council/wolverhampton","Virgintrains.co.uk","193.00","Fostering Team & Allowances","4112","Public Transport","15/10/2015"
"Wolverhampton City Council","http://opendatacommunities.org/id/metropolitan-district-council/wolverhampton","SAINSBURYS 2040","5.00","Mayoral Expenses","5411","Hospitality","15/10/2015"
"Wolverhampton City Council","http://opendatacommunities.org/id/metropolitan-district-council/wolverhampton","E01510300000000","50.00","Emergency Duty Team","6011","Financial Assistance In Exceptional Circ","15/10/2015"
"Wolverhampton City Council","http://opendatacommunities.org/id/metropolitan-district-council/wolverhampton","M&S E COMMERCE","27.00","Public Health Commissioning","5411","Provisions (Not for resale)","15/10/2015"
"Wolverhampton City Council","http://opendatacommunities.org/id/metropolitan-district-council/wolverhampton","WICKES","7.65","Duke Street Bungalows","5211","Equipment - R & M","14/10/2015"
"Wolverhampton City Council","http://opendatacommunities.org/id/metropolitan-district-council/wolverhampton","WWW.SPORTSWAREHOUSE.CO","-3.32","Aldersley Leisure Village","7997","Equipment - Purchase","14/10/2015"
"Wolverhampton City Council","http://opendatacommunities.org/id/metropolitan-district-council/wolverhampton","ASDA HOME SHOPPING","50.36","Ernest Bold Court","5411","Provisions (Not for resale)","14/10/2015"
"Wolverhampton City Council","http://opendatacommunities.org/id/metropolitan-district-council/wolverhampton","Amazon Svcs Europe,SAR","6.17","Parks - East Area Management","5942","Equipment - Purchase","14/10/2015"
"Wolverhampton City Council","http://opendatacommunities.org/id/metropolitan-district-council/wolverhampton","SANDWELL M.B.C.","20.00","Berries - CIN SWU S17","9399","Services - Fees and Charges","14/10/2015"
"Wolverhampton City Council","http://opendatacommunities.org/id/metropolitan-district-council/wolverhampton","ASDA HOME SHOPPING","39.69","Swan Bank","5411","Provisions (Not for resale)","14/10/2015"
"Wolverhampton City Council","http://opendatacommunities.org/id/metropolitan-district-council/wolverhampton","TRAINLINE","102.51","Strategic Asset Management - General","4112","Public Transport","14/10/2015"
"Wolverhampton City Council","http://opendatacommunities.org/id/metropolitan-district-council/wolverhampton","Amazon UK Marketplace","19.95","Parks - South West Area Management","5942","Equipment - Purchase","14/10/2015"
"Wolverhampton City Council","http://opendatacommunities.org/id/metropolitan-district-council/wolverhampton","OFFICE DEPOT","42.70","LAC Education Team (LACE)","5111","Stationery","14/10/2015"
"Wolverhampton City Council","http://opendatacommunities.org/id/metropolitan-district-council/wolverhampton","SCREWFIX DIRECT","121.02","Parkfields Centre","5211","Equipment - Purchase","14/10/2015"
"Wolverhampton City Council","http://opendatacommunities.org/id/metropolitan-district-council/wolverhampton","BARCLAYS BANK PLC","100.00","Duke Street Bungalows","6011","Financial Assistance In Exceptional Circ","14/10/2015"
"Wolverhampton City Council","http://opendatacommunities.org/id/metropolitan-district-council/wolverhampton","HERON FOODS LTD","16.33","Ernest Bold Court","5499","Catering","14/10/2015"
"Wolverhampton City Council","http://opendatacommunities.org/id/metropolitan-district-council/wolverhampton","QUEENSVILLE STORE","60.00","Black Art Movement","5994","Public Transport","14/10/2015"
"Wolverhampton City Council","http://opendatacommunities.org/id/metropolitan-district-council/wolverhampton","REGISTRARS OFFICE","29.00","Head of Service - CINCP","8299","Services - Professional Fees","14/10/2015"
"Wolverhampton City Council","http://opendatacommunities.org/id/metropolitan-district-council/wolverhampton","NETWORK WEST MIDLANDS","51.50","Graiseley - CIN SWU S17","9399","Services - Fees and Charges","14/10/2015"
"Wolverhampton City Council","http://opendatacommunities.org/id/metropolitan-district-council/wolverhampton","Virgintrains.co.uk","71.20","HRA General","4112","Public Transport","14/10/2015"
"Wolverhampton City Council","http://opendatacommunities.org/id/metropolitan-district-council/wolverhampton","MERCURE HULL NORTH","110.00","Fostering Team & Allowances","7011","Services - Supplies & Services to users","14/10/2015"
"Wolverhampton City Council","http://opendatacommunities.org/id/metropolitan-district-council/wolverhampton","MARKS & SPENCER","350.00","Fostering Team & Allowances","5411","Provisions (Not for resale)","14/10/2015"
"Wolverhampton City Council","http://opendatacommunities.org/id/metropolitan-district-council/wolverhampton","Amazon Svcs Europe,SAR","27.99","Technical Support","5942","Books","14/10/2015"
"Wolverhampton City Council","http://opendatacommunities.org/id/metropolitan-district-council/wolverhampton","POST OFFICE COUNTER","117.50","Looked After Team 1","9402","Comms - Postage","14/10/2015"
"Wolverhampton City Council","http://opendatacommunities.org/id/metropolitan-district-council/wolverhampton","TRAINLINE","65.89","Strategic Asset Management - General","4112","Public Transport","14/10/2015"
"Wolverhampton City Council","http://opendatacommunities.org/id/metropolitan-district-council/wolverhampton","OFFICE DEPOT","52.62","Duke Street Bungalows","5111","Stationery","14/10/2015"
"Wolverhampton City Council","http://opendatacommunities.org/id/metropolitan-district-council/wolverhampton","BRITANNIA","136.67","Berries - CIN SWU S17","7011","Services - Supplies & Services to users","14/10/2015"
"Wolverhampton City Council","http://opendatacommunities.org/id/metropolitan-district-council/wolverhampton","Virgintrains.co.uk","-97.50","Private Sector Housing","4112","Public Transport","14/10/2015"
"Wolverhampton City Council","http://opendatacommunities.org/id/metropolitan-district-council/wolverhampton","Amazon UK Marketplace","-31.05","Adoption and Residence Team & Allowances","5999","Equipment - Purchase","14/10/2015"
"Wolverhampton City Council","http://opendatacommunities.org/id/metropolitan-district-council/wolverhampton","WWW.VIKING-DIRECT.CO.U","179.95","Buisness Continuity & Emergency Planning","5111","Stationery","14/10/2015"
"Wolverhampton City Council","http://opendatacommunities.org/id/metropolitan-district-council/wolverhampton","BRITANNIA","67.00","Valley Park - CIN SWU S17","7011","Accommodation Costs","14/10/2015"
"Wolverhampton City Council","http://opendatacommunities.org/id/metropolitan-district-council/wolverhampton","ASDA HOME SHOPPING","-0.09","Ernest Bold Court","5411","Provisions (Not for resale)","14/10/2015"
"Wolverhampton City Council","http://opendatacommunities.org/id/metropolitan-district-council/wolverhampton","SAINSBURYS (2340)","10.15","Civic Centre Catering","5411","Provisions (Not for resale)","14/10/2015"
"Wolverhampton City Council","http://opendatacommunities.org/id/metropolitan-district-council/wolverhampton","HTTP://WWW.DAYLIGHT-LA","62.49","Creative Studies Delivery Area","5200","Equipment - Purchase","14/10/2015"
"Wolverhampton City Council","http://opendatacommunities.org/id/metropolitan-district-council/wolverhampton","TRAINLINE","186.66","Strategic Asset Management - General","4112","Public Transport","14/10/2015"
"Wolverhampton City Council","http://opendatacommunities.org/id/metropolitan-district-council/wolverhampton","TRAINLINE","172.89","Looked After Team 1","4112","Public Transport","14/10/2015"
"Wolverhampton City Council","http://opendatacommunities.org/id/metropolitan-district-council/wolverhampton","ASDA SUPERSTORE","4.00","Swan Bank","5411","Provisions (Not for resale)","14/10/2015"
"Wolverhampton City Council","http://opendatacommunities.org/id/metropolitan-district-council/wolverhampton","OFFICE DEPOT","66.98","Democratic Support","5111","Stationery","14/10/2015"
"Wolverhampton City Council","http://opendatacommunities.org/id/metropolitan-district-council/wolverhampton","COMBINED COURT","6480.00","Head of Service - CINCP","9222","Services - Professional Fees","14/10/2015"
"Wolverhampton City Council","http://opendatacommunities.org/id/metropolitan-district-council/wolverhampton","B & Q","31.12","Towers Outdoor Education Centre","5211","Fixtures and Fittings - Purchases","14/10/2015"
"Wolverhampton City Council","http://opendatacommunities.org/id/metropolitan-district-council/wolverhampton","Amazon EU","25.83","Children's Village Children Centre","5969","Equipment - Purchase","14/10/2015"
"Wolverhampton City Council","http://opendatacommunities.org/id/metropolitan-district-council/wolverhampton","NCP LIMITED","4.17","LAC Transitions Team","7523","Car Allowances","14/10/2015"
"Wolverhampton City Council","http://opendatacommunities.org/id/metropolitan-district-council/wolverhampton","OFFICE DEPOT","42.05","Adoption and Residence Team & Allowances","5111","Stationery","14/10/2015"
"Wolverhampton City Council","http://opendatacommunities.org/id/metropolitan-district-council/wolverhampton","OFFICE DEPOT","111.61","Graiseley - CIN SWU S17","5111","Stationery","13/10/2015"
"Wolverhampton City Council","http://opendatacommunities.org/id/metropolitan-district-council/wolverhampton","CENTRO HOUSE","-15.00","LAC Admin Team","4112","Public Transport","13/10/2015"
"Wolverhampton City Council","http://opendatacommunities.org/id/metropolitan-district-council/wolverhampton","MERCURE WOLVERHAMPTON","76.50","Learning Disabilities Management","7011","Training Expenses","13/10/2015"
"Wolverhampton City Council","http://opendatacommunities.org/id/metropolitan-district-council/wolverhampton","SAINSBURYS (2340)","45.45","Discretionary Fund","5411","Provisions (Not for resale)","13/10/2015"
"Wolverhampton City Council","http://opendatacommunities.org/id/metropolitan-district-council/wolverhampton","NETWORK WEST MIDLANDS","206.00","LAC Transitions Team","9399","Services - Fees and Charges","13/10/2015"
"Wolverhampton City Council","http://opendatacommunities.org/id/metropolitan-district-council/wolverhampton","CENTRO HOUSE","15.00","LAC Admin Team","4112","Public Transport","13/10/2015"
"Wolverhampton City Council","http://opendatacommunities.org/id/metropolitan-district-council/wolverhampton","ASDA SUPERSTORE","34.70","Civic Centre Catering","5411","Provisions (Not for resale)","13/10/2015"
"Wolverhampton City Council","http://opendatacommunities.org/id/metropolitan-district-council/wolverhampton","CENTRO HOUSE","15.00","LAC Admin Team","4112","Public Transport","13/10/2015"
"Wolverhampton City Council","http://opendatacommunities.org/id/metropolitan-district-council/wolverhampton","CENTRO HOUSE","-15.00","LAC Admin Team","4112","Public Transport","13/10/2015"
"Wolverhampton City Council","http://opendatacommunities.org/id/metropolitan-district-council/wolverhampton","ASDA HOME SHOPPING","0.52","Upper Pendeford Farm Childrens Home","5411","Provisions (Not for resale)","13/10/2015"
"Wolverhampton City Council","http://opendatacommunities.org/id/metropolitan-district-council/wolverhampton","TRAINLINE","19.94","SEN Sensory Inclusion","4112","Public Transport","13/10/2015"
"Wolverhampton City Council","http://opendatacommunities.org/id/metropolitan-district-council/wolverhampton","TVLICENSING.CO.UK","145.50","LAC Transitions Team","7392","Client Allowances","13/10/2015"
"Wolverhampton City Council","http://opendatacommunities.org/id/metropolitan-district-council/wolverhampton","BEATTIES","12.50","Mayoral Expenses","5311","Hospitality","13/10/2015"
"Wolverhampton City Council","http://opendatacommunities.org/id/metropolitan-district-council/wolverhampton","CORPORATE INSIGNIA LTD","135.55","WV Active Business Support","5943","Clothing / Uniforms","13/10/2015"
"Wolverhampton City Council","http://opendatacommunities.org/id/metropolitan-district-council/wolverhampton","ARGOS RETAIL GROUP","66.20","Intensive Family Support Unit","5310","Equipment - Purchase","13/10/2015"
"Wolverhampton City Council","http://opendatacommunities.org/id/metropolitan-district-council/wolverhampton","JUICY FRUITS","177.31","Children's Village Nursery","5411","School Meals","13/10/2015"
"Wolverhampton City Council","http://opendatacommunities.org/id/metropolitan-district-council/wolverhampton","OFFICE DEPOT","22.10","Cleaning of Buildings - General","5111","Stationery","13/10/2015"
"Wolverhampton City Council","http://opendatacommunities.org/id/metropolitan-district-council/wolverhampton","WWW.STADIA-SPORTS.CO.U","94.35","Aldersley Leisure Village","1520","Equipment - Purchase","13/10/2015"
"Wolverhampton City Council","http://opendatacommunities.org/id/metropolitan-district-council/wolverhampton","ASDA HOME SHOPPING","199.47","Upper Pendeford Farm Childrens Home","5411","Provisions (Not for resale)","13/10/2015"
"Wolverhampton City Council","http://opendatacommunities.org/id/metropolitan-district-council/wolverhampton","WWW.SPORTSWAREHOUSE.CO","486.64","Aldersley Leisure Village","7997","Equipment - Purchase","13/10/2015"
"Wolverhampton City Council","http://opendatacommunities.org/id/metropolitan-district-council/wolverhampton","Virgintrains.co.uk","32.00","Fostering Team & Allowances","4112","Public Transport","13/10/2015"
"Wolverhampton City Council","http://opendatacommunities.org/id/metropolitan-district-council/wolverhampton","TESCO STORES 6727","11.43","Restorative Justice","5411","Hospitality","13/10/2015"
"Wolverhampton City Council","http://opendatacommunities.org/id/metropolitan-district-council/wolverhampton","TVLICENSING.CO.UK","145.50","LAC Transitions Team","7392","Client Allowances","13/10/2015"
"Wolverhampton City Council","http://opendatacommunities.org/id/metropolitan-district-council/wolverhampton","OFFICE DEPOT","92.22","Education Catering - General Overheads","5111","Stationery","13/10/2015"
"Wolverhampton City Council","http://opendatacommunities.org/id/metropolitan-district-council/wolverhampton","Amazon Prime","-65.83","Safeguarding Children","5968","Subscriptions","13/10/2015"
"Wolverhampton City Council","http://opendatacommunities.org/id/metropolitan-district-council/wolverhampton","POST OFFICE COUNTER","21.84","CIN - Whitmore Reans CC - Area 5","9402","Comms - Postage","13/10/2015"
"Wolverhampton City Council","http://opendatacommunities.org/id/metropolitan-district-council/wolverhampton","SMYTHS TOYS","106.14","Children & Family Contact Services","5945","Equipment - Purchase","13/10/2015"
"Wolverhampton City Council","http://opendatacommunities.org/id/metropolitan-district-council/wolverhampton","WWW.SPORTSWAREHOUSE.CO","486.64","Aldersley Leisure Village","7997","Equipment - Purchase","13/10/2015"
"Wolverhampton City Council","http://opendatacommunities.org/id/metropolitan-district-council/wolverhampton","Virgintrains.co.uk","143.30","Fostering Team & Allowances","4112","Public Transport","13/10/2015"
"Wolverhampton City Council","http://opendatacommunities.org/id/metropolitan-district-council/wolverhampton","OFFICE DEPOT","58.44","Children's Village Children Centre","5111","Stationery","12/10/2015"
"Wolverhampton City Council","http://opendatacommunities.org/id/metropolitan-district-council/wolverhampton","FACEBOOK UKRAS7AB92","600.00","Communications & Marketing - General","7311","Marketing \ Non-staff advertising","12/10/2015"
"Wolverhampton City Council","http://opendatacommunities.org/id/metropolitan-district-council/wolverhampton","Virgintrains.co.uk","168.60","Fostering Team & Allowances","4112","Public Transport","12/10/2015"
"Wolverhampton City Council","http://opendatacommunities.org/id/metropolitan-district-council/wolverhampton","Q-SYSTEMS LIMITED","18.00","Catering Overhead Account","5999","Equipment - R & M","12/10/2015"
"Wolverhampton City Council","http://opendatacommunities.org/id/metropolitan-district-council/wolverhampton","ASDA SUPERSTORE","3.00","Swan Bank","5411","Provisions (Not for resale)","12/10/2015"
"Wolverhampton City Council","http://opendatacommunities.org/id/metropolitan-district-council/wolverhampton","MERCURE WOLVERHAMPTON","128.67","Valley Park - CIN SWU S17","7011","Accommodation Costs","12/10/2015"
"Wolverhampton City Council","http://opendatacommunities.org/id/metropolitan-district-council/wolverhampton","Amazon EU","73.57","LAC Transitions Team","5969","Books","12/10/2015"
"Wolverhampton City Council","http://opendatacommunities.org/id/metropolitan-district-council/wolverhampton","WILKO RETAIL LIMIT","19.95","Children & Family Contact Services","5722","Equipment - Purchase","12/10/2015"
"Wolverhampton City Council","http://opendatacommunities.org/id/metropolitan-district-council/wolverhampton","NETWORK WEST MIDLANDS","31.00","Graiseley - CIN SWU S17","9399","Services - Fees and Charges","12/10/2015"
"Wolverhampton City Council","http://opendatacommunities.org/id/metropolitan-district-council/wolverhampton","POUNDSTRETCHER 147","9.64","Children & Family Contact Services","5714","Equipment - Purchase","12/10/2015"
"Wolverhampton City Council","http://opendatacommunities.org/id/metropolitan-district-council/wolverhampton","Virgintrains.co.uk","241.00","Fostering Team & Allowances","4112","Public Transport","12/10/2015"
"Wolverhampton City Council","http://opendatacommunities.org/id/metropolitan-district-council/wolverhampton","VUE ITCERTIFICATIONVUE","118.80","Customer Services","8299","Training Expenses","12/10/2015"
"Wolverhampton City Council","http://opendatacommunities.org/id/metropolitan-district-council/wolverhampton","PAYPAL  THEROTA","170.19","Civic Hall Administration Overhead Acct","5735","Marketing \ Non-staff advertising","12/10/2015"
"Wolverhampton City Council","http://opendatacommunities.org/id/metropolitan-district-council/wolverhampton","ASDA HOME SHOPPING","0.27","Ernest Bold Court","5411","Provisions (Not for resale)","12/10/2015"
"Wolverhampton City Council","http://opendatacommunities.org/id/metropolitan-district-council/wolverhampton","WWW.CHAMBERLAINMUSIC.C","-58.20","Music Support Team","5733","Equipment - R & M","12/10/2015"
"Wolverhampton City Council","http://opendatacommunities.org/id/metropolitan-district-council/wolverhampton","WIX.COM","1.90","Technical Support","5734","Computing - Purchase of Software","12/10/2015"
"Wolverhampton City Council","http://opendatacommunities.org/id/metropolitan-district-council/wolverhampton","ASDA HOME SHOPPING","0.03","Swan Bank","5411","Provisions (Not for resale)","12/10/2015"
"Wolverhampton City Council","http://opendatacommunities.org/id/metropolitan-district-council/wolverhampton","G & M HALE LTD","135.15","Creative Studies Delivery Area","5992","Materials for resale","12/10/2015"
"Wolverhampton City Council","http://opendatacommunities.org/id/metropolitan-district-council/wolverhampton","PREMIER INN","78.75","Fostering Team & Allowances","3811","Services - Supplies & Services to users","12/10/2015"
"Wolverhampton City Council","http://opendatacommunities.org/id/metropolitan-district-council/wolverhampton","OFFICE DEPOT","31.86","Benefits","5111","Stationery","12/10/2015"
"Wolverhampton City Council","http://opendatacommunities.org/id/metropolitan-district-council/wolverhampton","Virgintrains.co.uk","180.00","Fostering Team & Allowances","4112","Public Transport","12/10/2015"
"Wolverhampton City Council","http://opendatacommunities.org/id/metropolitan-district-council/wolverhampton","REGISTRARS OFFICE","58.00","Legal Services","8299","Training Expenses","12/10/2015"
"Wolverhampton City Council","http://opendatacommunities.org/id/metropolitan-district-council/wolverhampton","G & M HALE LTD","79.50","Discretionary Fund","5992","Materials","12/10/2015"
"Wolverhampton City Council","http://opendatacommunities.org/id/metropolitan-district-council/wolverhampton","KINGS ARMS HOTEL","60.00","Safeguarding Children","7011","Services - Supplies & Services to users","12/10/2015"
"Wolverhampton City Council","http://opendatacommunities.org/id/metropolitan-district-council/wolverhampton","MICHAEL BACHYK","128.31","Catering Overhead Account","5422","Catering","12/10/2015"
"Wolverhampton City Council","http://opendatacommunities.org/id/metropolitan-district-council/wolverhampton","POST OFFICE COUNTER","7.25","Looked After Team 1","9402","Comms - Postage","12/10/2015"
"Wolverhampton City Council","http://opendatacommunities.org/id/metropolitan-district-council/wolverhampton","COOKSON PRECIOUS M","29.12","Creative Studies Delivery Area","5094","Provisions (Resale)","12/10/2015"
"Wolverhampton City Council","http://opendatacommunities.org/id/metropolitan-district-council/wolverhampton","TRAINLINE","55.79","CIN - Avenues MAST - Area 7","4112","Public Transport","12/10/2015"
"Wolverhampton City Council","http://opendatacommunities.org/id/metropolitan-district-council/wolverhampton","ARGOS LTD","58.88","Children & Family Contact Services","5310","Equipment - Purchase","12/10/2015"
"Wolverhampton City Council","http://opendatacommunities.org/id/metropolitan-district-council/wolverhampton","B&M RETAIL","3.32","Aldersley Leisure Village","5310","Equipment - Purchase","12/10/2015"
"Wolverhampton City Council","http://opendatacommunities.org/id/metropolitan-district-council/wolverhampton","WP-BMD CERTIFICATE","25.00","Berries - CIN SWU S17","7375","Services - Fees and Charges","12/10/2015"
"Wolverhampton City Council","http://opendatacommunities.org/id/metropolitan-district-council/wolverhampton","G & M HALE (SUNDRIES)","23.30","Discretionary Fund","5992","Materials","12/10/2015"
"Wolverhampton City Council","http://opendatacommunities.org/id/metropolitan-district-council/wolverhampton","ASDA SUPERSTORE","86.61","LAC Transitions Team","5411","Accommodation Costs","12/10/2015"
"Wolverhampton City Council","http://opendatacommunities.org/id/metropolitan-district-council/wolverhampton","CROSSFLIGHT LTD","69.24","Martin Parr","4215","Comms - Postage","12/10/2015"
"Wolverhampton City Council","http://opendatacommunities.org/id/metropolitan-district-council/wolverhampton","CENTURY ELECTRICAL WHO","35.00","Caretakers Community Centre","5065","Equipment - R & M","12/10/2015"
"Wolverhampton City Council","http://opendatacommunities.org/id/metropolitan-district-council/wolverhampton","Wix.com","46.57","Technical Support","5817","Computing - Purchase of Software","12/10/2015"
"Wolverhampton City Council","http://opendatacommunities.org/id/metropolitan-district-council/wolverhampton","THE COAL AUTHORITY","82.80","Legal Services","9399","Services - Fees and Charges","12/10/2015"
"Wolverhampton City Council","http://opendatacommunities.org/id/metropolitan-district-council/wolverhampton","CUMMINGS BROTHERS LOCK","12.00","Street Lighting Maintenance","7399","Equipment - Purchase","12/10/2015"
"Wolverhampton City Council","http://opendatacommunities.org/id/metropolitan-district-council/wolverhampton","Amazon EU","52.21","CIN - Valley Park Mast - Area 5","5969","Books","12/10/2015"
"Wolverhampton City Council","http://opendatacommunities.org/id/metropolitan-district-council/wolverhampton","TESCO STORES 6197","143.76","Windmill Lane - Respite Home","5411","Provisions (Not for resale)","12/10/2015"
"Wolverhampton City Council","http://opendatacommunities.org/id/metropolitan-district-council/wolverhampton","HMCOURTS-SERVICE.G","20.00","Mental Health Assessment & Care Mgmt","9222","Services - Fees and Charges","12/10/2015"
"Wolverhampton City Council","http://opendatacommunities.org/id/metropolitan-district-council/wolverhampton","ASDA HOME SHOPPING","67.34","Swan Bank","5411","Provisions (Not for resale)","12/10/2015"
"Wolverhampton City Council","http://opendatacommunities.org/id/metropolitan-district-council/wolverhampton","ASDA HOME SHOPPING","59.53","Ernest Bold Court","5411","Provisions (Not for resale)","12/10/2015"
"Wolverhampton City Council","http://opendatacommunities.org/id/metropolitan-district-council/wolverhampton","SPECSAVERSEVOUGB-","1700.00","Eye Test Vouchers (HR)","8043","Medical Fees","12/10/2015"
"Wolverhampton City Council","http://opendatacommunities.org/id/metropolitan-district-council/wolverhampton","TRAINLINE","29.12","Looked After Team 1","4112","Public Transport","12/10/2015"
"Wolverhampton City Council","http://opendatacommunities.org/id/metropolitan-district-council/wolverhampton","SCREWFIX DIRECT","35.81","Caretakers Community Centre","5211","Materials","09/10/2015"
"Wolverhampton City Council","http://opendatacommunities.org/id/metropolitan-district-council/wolverhampton","OFFICE DEPOT","219.87","Children's Village Children Centre","5111","Stationery","09/10/2015"
"Wolverhampton City Council","http://opendatacommunities.org/id/metropolitan-district-council/wolverhampton","CARTRIDGE DISCOUNT","90.49","Civic Halls Non Direct Management A/C","5045","Stationery","09/10/2015"
"Wolverhampton City Council","http://opendatacommunities.org/id/metropolitan-district-council/wolverhampton","POST OFFICE COUNTER","26.60","Legal Services","9402","Comms - Postage","09/10/2015"
"Wolverhampton City Council","http://opendatacommunities.org/id/metropolitan-district-council/wolverhampton","OFFICE DEPOT","6.90","Bradley Resource Centre","5111","Stationery","09/10/2015"
"Wolverhampton City Council","http://opendatacommunities.org/id/metropolitan-district-council/wolverhampton","123-REG.CO.UK","13.96","Technical Support","4816","Computing - Purchase of Software","09/10/2015"
"Wolverhampton City Council","http://opendatacommunities.org/id/metropolitan-district-council/wolverhampton","CT WOLVERHAMPTON","-187.50","CIN - Bilston CC2 - Area 2","8398","Services - Supplies & Services to users","09/10/2015"
"Wolverhampton City Council","http://opendatacommunities.org/id/metropolitan-district-council/wolverhampton","POST OFFICE COUNTER","1.71","Learning Disabilities Management","9402","Comms - Postage","09/10/2015"
"Wolverhampton City Council","http://opendatacommunities.org/id/metropolitan-district-council/wolverhampton","Amazon UK Marketplace","59.00","Service Wide","5942","Equipment - Purchase","09/10/2015"
"Wolverhampton City Council","http://opendatacommunities.org/id/metropolitan-district-council/wolverhampton","IKEA","66.67","Graiseley - CIN SWU S17","5719","Equipment - Purchase","09/10/2015"
"Wolverhampton City Council","http://opendatacommunities.org/id/metropolitan-district-council/wolverhampton","Amazon UK Marketplace","321.00","MAST 5 - Valley Park","5942","Equipment - Purchase","09/10/2015"
"Wolverhampton City Council","http://opendatacommunities.org/id/metropolitan-district-council/wolverhampton","POST OFFICE COUNTER","63.00","MAST 5 - Valley Park","9402","Comms - Postage","09/10/2015"
"Wolverhampton City Council","http://opendatacommunities.org/id/metropolitan-district-council/wolverhampton","SCREWFIX DIRECT","49.99","Civic Centre","5211","Materials","09/10/2015"
"Wolverhampton City Council","http://opendatacommunities.org/id/metropolitan-district-council/wolverhampton","GRO HM PASSPORT OFFICE","9.25","Childrens with Disabilities Team","9399","Services - Fees and Charges","09/10/2015"
"Wolverhampton City Council","http://opendatacommunities.org/id/metropolitan-district-council/wolverhampton","CUMMINGS BROTHERS LOCK","7.08","Caretakers Community Centre","7399","R&M - Departmental planned (external)","09/10/2015"
"Wolverhampton City Council","http://opendatacommunities.org/id/metropolitan-district-council/wolverhampton","OFFICE DEPOT","8.27","Welfare Rights","5111","Stationery","09/10/2015"
"Wolverhampton City Council","http://opendatacommunities.org/id/metropolitan-district-council/wolverhampton","WWW.DERBY.GOV.UK","11.20","Head of Service - CINCP","9399","Services - Professional Fees","09/10/2015"
"Wolverhampton City Council","http://opendatacommunities.org/id/metropolitan-district-council/wolverhampton","OFFICE DEPOT","27.00","Register Office","5111","Stationery","09/10/2015"
"Wolverhampton City Council","http://opendatacommunities.org/id/metropolitan-district-council/wolverhampton","BURTECH CYF","107.57","Towers Outdoor Education Centre","7538","Vehicle Maintenance - Repairs","09/10/2015"
"Wolverhampton City Council","http://opendatacommunities.org/id/metropolitan-district-council/wolverhampton","GRO HM PASSPORT OFFICE","-23.40","Head of Service - CINCP","9399","Services - Professional Fees","09/10/2015"
"Wolverhampton City Council","http://opendatacommunities.org/id/metropolitan-district-council/wolverhampton","WWW.SPIRITDATACAPTURE.","57.72","Condition Surveys","5072","Computing - Purchase of Hardware","09/10/2015"
"Wolverhampton City Council","http://opendatacommunities.org/id/metropolitan-district-council/wolverhampton","Amazon EU","21.00","WV Active Business Support","5969","Stationery","09/10/2015"
"Wolverhampton City Council","http://opendatacommunities.org/id/metropolitan-district-council/wolverhampton","GRO HM PASSPORT OFFICE","-23.40","Head of Service - CINCP","9399","Services - Professional Fees","09/10/2015"
"Wolverhampton City Council","http://opendatacommunities.org/id/metropolitan-district-council/wolverhampton","Virgintrains.co.uk","82.60","Private Sector Housing","4112","Public Transport","09/10/2015"
"Wolverhampton City Council","http://opendatacommunities.org/id/metropolitan-district-council/wolverhampton","SAINSBURYS 2040","170.00","LAC Transitions Team","5411","Accommodation Costs","09/10/2015"
"Wolverhampton City Council","http://opendatacommunities.org/id/metropolitan-district-council/wolverhampton","MEDIA & COMMUNICATIONS","213.00","Revenues","4812","Equipment - Purchase","09/10/2015"
"Wolverhampton City Council","http://opendatacommunities.org/id/metropolitan-district-council/wolverhampton","OFFICE DEPOT","401.10","Register Office","5111","Stationery","09/10/2015"
"Wolverhampton City Council","http://opendatacommunities.org/id/metropolitan-district-council/wolverhampton","ARGOS RETAIL GROUP","33.32","Learning Disabilities Management","5310","Equipment - Purchase","09/10/2015"
"Wolverhampton City Council","http://opendatacommunities.org/id/metropolitan-district-council/wolverhampton","HOME BARGAINS","55.53","Cemeteries","5251","Cleaning Supplies and Materials","09/10/2015"
"Wolverhampton City Council","http://opendatacommunities.org/id/metropolitan-district-council/wolverhampton","ARGOS LTD","59.37","MAST 3 - Graiseley","5310","Direct Work With Children","09/10/2015"
"Wolverhampton City Council","http://opendatacommunities.org/id/metropolitan-district-council/wolverhampton","POST OFFICE COUNTER","169.25","Fostering Team & Allowances","9402","Comms - Postage","09/10/2015"
"Wolverhampton City Council","http://opendatacommunities.org/id/metropolitan-district-council/wolverhampton","FTPE WEBTIS 1","160.00","LAC Transitions Team","4112","Public Transport","09/10/2015"
"Wolverhampton City Council","http://opendatacommunities.org/id/metropolitan-district-council/wolverhampton","DUSTBAG LTD","14.96","Service Wide","5722","Equipment - Purchase","08/10/2015"
"Wolverhampton City Council","http://opendatacommunities.org/id/metropolitan-district-council/wolverhampton","ARGOS LTD","24.99","CIN - Bilston CC2 - Area 2","5310","Equipment - Purchase","08/10/2015"
"Wolverhampton City Council","http://opendatacommunities.org/id/metropolitan-district-council/wolverhampton","HOLIDAY INNS","171.67","Childrens Centres & Early Years","3501","Services - Supplies & Services to users","08/10/2015"
"Wolverhampton City Council","http://opendatacommunities.org/id/metropolitan-district-council/wolverhampton","Amazon UK Marketplace","12.98","Members Expenses","5942","Computing - Consumables","08/10/2015"
"Wolverhampton City Council","http://opendatacommunities.org/id/metropolitan-district-council/wolverhampton","TESCO STORES 6727","7.50","Assessment Team (East)","5411","Equipment - Health and Safety","08/10/2015"
"Wolverhampton City Council","http://opendatacommunities.org/id/metropolitan-district-council/wolverhampton","ONLINE ERGONOMICS","80.20","Revenues","5021","Equipment - Purchase","08/10/2015"
"Wolverhampton City Council","http://opendatacommunities.org/id/metropolitan-district-council/wolverhampton","TRAINLINE","114.24","Legal Services","4112","Public Transport","08/10/2015"
"Wolverhampton City Council","http://opendatacommunities.org/id/metropolitan-district-council/wolverhampton","EB MOUNTAIN HIGH ARCH","11.25","Black Art Movement","7399","Events","08/10/2015"
"Wolverhampton City Council","http://opendatacommunities.org/id/metropolitan-district-council/wolverhampton","PURE SAFETY","29.46","Service Wide","5099","Equipment - Purchase","08/10/2015"
"Wolverhampton City Council","http://opendatacommunities.org/id/metropolitan-district-council/wolverhampton","OFFICE DEPOT","81.04","Shopmobility","5111","Equipment - Purchase","08/10/2015"
"Wolverhampton City Council","http://opendatacommunities.org/id/metropolitan-district-council/wolverhampton","PAYPAL  NALDIC","150.00","School Improvement","8398","Services - Supplies & Services to users","08/10/2015"
"Wolverhampton City Council","http://opendatacommunities.org/id/metropolitan-district-council/wolverhampton","GRO HM PASSPORT OFFICE","23.40","Head of Service - CINCP","9399","Services - Professional Fees","08/10/2015"
"Wolverhampton City Council","http://opendatacommunities.org/id/metropolitan-district-council/wolverhampton","POST OFFICE COUNTER","13.52","Music Support Team","9402","Comms - Postage","08/10/2015"
"Wolverhampton City Council","http://opendatacommunities.org/id/metropolitan-district-council/wolverhampton","PAYPAL  NALDIC","60.00","School Improvement","8398","Services - Supplies & Services to users","08/10/2015"
"Wolverhampton City Council","http://opendatacommunities.org/id/metropolitan-district-council/wolverhampton","Virgintrains.co.uk","129.15","Art Gallery","4112","Public Transport","08/10/2015"
"Wolverhampton City Council","http://opendatacommunities.org/id/metropolitan-district-council/wolverhampton","OFFICE DEPOT","17.39","Swan Bank","5111","Stationery","08/10/2015"
"Wolverhampton City Council","http://opendatacommunities.org/id/metropolitan-district-council/wolverhampton","FTPE WEBTIS 1","31.70","LAC Transitions Team","4112","Public Transport","08/10/2015"
"Wolverhampton City Council","http://opendatacommunities.org/id/metropolitan-district-council/wolverhampton","UTILITY WAREHOUSE","29.32","HRA General","4900","Electricity","08/10/2015"
"Wolverhampton City Council","http://opendatacommunities.org/id/metropolitan-district-council/wolverhampton","W M MORRISON PLC","23.59","Ernest Bold Court","5411","Provisions (Not for resale)","08/10/2015"
"Wolverhampton City Council","http://opendatacommunities.org/id/metropolitan-district-council/wolverhampton","ASDA SUPERSTORE","100.00","Valley Park - CIN SWU S17","5411","Provisions (Not for resale)","08/10/2015"
"Wolverhampton City Council","http://opendatacommunities.org/id/metropolitan-district-council/wolverhampton","Amazon UK Marketplace","39.96","Foundation Studies","5942","Equipment - Purchase","08/10/2015"
"Wolverhampton City Council","http://opendatacommunities.org/id/metropolitan-district-council/wolverhampton","OFFICE DEPOT","12.49","Duke Street Bungalows","5111","Stationery","08/10/2015"
"Wolverhampton City Council","http://opendatacommunities.org/id/metropolitan-district-council/wolverhampton","TRAINLINE","19.23","Looked After Team 1","4112","Public Transport","08/10/2015"
"Wolverhampton City Council","http://opendatacommunities.org/id/metropolitan-district-council/wolverhampton","TRAINLINE","189.72","Communications & Marketing - General","4112","Public Transport","08/10/2015"
"Wolverhampton City Council","http://opendatacommunities.org/id/metropolitan-district-council/wolverhampton","TRAINLINE","10.97","Legal Services","4112","Public Transport","08/10/2015"
"Wolverhampton City Council","http://opendatacommunities.org/id/metropolitan-district-council/wolverhampton","POUNDLAND LTD 1463","4.17","Creative Studies Delivery Area","5310","Equipment - Purchase","08/10/2015"
"Wolverhampton City Council","http://opendatacommunities.org/id/metropolitan-district-council/wolverhampton","WEST COAST TRAINS","104.95","Graiseley - CIN SWU S17","4112","Public Transport","08/10/2015"
"Wolverhampton City Council","http://opendatacommunities.org/id/metropolitan-district-council/wolverhampton","TRAINLINE","22.69","Childrens Centres & Early Years","4112","Public Transport","08/10/2015"
"Wolverhampton City Council","http://opendatacommunities.org/id/metropolitan-district-council/wolverhampton","POST OFFICE COUNTER","1.73","Carers Support","9402","Comms - Postage","08/10/2015"
"Wolverhampton City Council","http://opendatacommunities.org/id/metropolitan-district-council/wolverhampton","WWW.CHAMBERLAINMUSIC.C","58.20","Music Support Team","5733","Equipment - R & M","08/10/2015"
"Wolverhampton City Council","http://opendatacommunities.org/id/metropolitan-district-council/wolverhampton","TRAINLINE","31.87","Childrens Centres & Early Years","4112","Public Transport","08/10/2015"
"Wolverhampton City Council","http://opendatacommunities.org/id/metropolitan-district-council/wolverhampton","OFFICE DEPOT","6.99","Corporate Policy and Equalities","5111","Stationery","08/10/2015"
"Wolverhampton City Council","http://opendatacommunities.org/id/metropolitan-district-council/wolverhampton","GRO HM PASSPORT OFFICE","23.40","Head of Service - CINCP","9399","Services - Professional Fees","08/10/2015"
"Wolverhampton City Council","http://opendatacommunities.org/id/metropolitan-district-council/wolverhampton","ARGOS RETAIL GROUP","88.94","Graiseley - CIN SWU S17","5310","Equipment - Purchase","08/10/2015"
"Wolverhampton City Council","http://opendatacommunities.org/id/metropolitan-district-council/wolverhampton","WWW.CHAMBERLAINMUSIC.C","58.20","Music Support Team","5733","Equipment - R & M","08/10/2015"
"Wolverhampton City Council","http://opendatacommunities.org/id/metropolitan-district-council/wolverhampton","MAG EVENTS","330.00","Childrens Centres & Early Years","5192","Books","08/10/2015"
"Wolverhampton City Council","http://opendatacommunities.org/id/metropolitan-district-council/wolverhampton","EXPRESS MATTING SE","94.98","Service Wide","5713","Equipment - Purchase","08/10/2015"
"Wolverhampton City Council","http://opendatacommunities.org/id/metropolitan-district-council/wolverhampton","CARESHOP","57.18","Ernest Bold Court","5999","Cleaning Supplies and Materials","08/10/2015"
"Wolverhampton City Council","http://opendatacommunities.org/id/metropolitan-district-council/wolverhampton","Amazon UK Marketplace","63.94","Technical Material","5942","Equipment - Purchase","08/10/2015"
"Wolverhampton City Council","http://opendatacommunities.org/id/metropolitan-district-council/wolverhampton","OFFICE DEPOT","79.64","Fostering Team & Allowances","5111","Stationery","08/10/2015"
"Wolverhampton City Council","http://opendatacommunities.org/id/metropolitan-district-council/wolverhampton","MARKS & SPENCER","-12.50","Civic Centre Catering","5411","Provisions (Not for resale)","08/10/2015"
"Wolverhampton City Council","http://opendatacommunities.org/id/metropolitan-district-council/wolverhampton","ARGOS RETAIL GROUP","63.94","LAC Transitions Team","5310","Equipment - Purchase","08/10/2015"
"Wolverhampton City Council","http://opendatacommunities.org/id/metropolitan-district-council/wolverhampton","TRAINLINE","44.11","Adoption and Residence Team & Allowances","4112","Public Transport","07/10/2015"
"Wolverhampton City Council","http://opendatacommunities.org/id/metropolitan-district-council/wolverhampton","123-REG.CO.UK","368.58","Customer Services","4816","Computing - Purchase of Software","07/10/2015"
"Wolverhampton City Council","http://opendatacommunities.org/id/metropolitan-district-council/wolverhampton","ARGOS LTD","21.80","Bilston 1 - CIN SWU S17","5310","Provisions (Not for resale)","07/10/2015"
"Wolverhampton City Council","http://opendatacommunities.org/id/metropolitan-district-council/wolverhampton","TESCO STORE 3414","2.00","Mayoral Expenses","5411","Provisions (Not for resale)","07/10/2015"
"Wolverhampton City Council","http://opendatacommunities.org/id/metropolitan-district-council/wolverhampton","TFM FARM & COUNTRY SUP","114.97","Northicote Farm","5399","Equipment - Purchase","07/10/2015"
"Wolverhampton City Council","http://opendatacommunities.org/id/metropolitan-district-council/wolverhampton","DUNELM (SOFT FURNISHIN","32.47","LAC Transitions Team","5714","Equipment - Purchase","07/10/2015"
"Wolverhampton City Council","http://opendatacommunities.org/id/metropolitan-district-council/wolverhampton","TESCO STORES 5194","120.92","Towers Outdoor Education Centre","5411","Provisions (Not for resale)","07/10/2015"
"Wolverhampton City Council","http://opendatacommunities.org/id/metropolitan-district-council/wolverhampton","NATWEST BANK","50.00","Ernest Bold Court","6011","Services - Bank Charges","07/10/2015"
"Wolverhampton City Council","http://opendatacommunities.org/id/metropolitan-district-council/wolverhampton","Amazon UK Marketplace","-46.41","Service Wide","5999","Equipment - Purchase","07/10/2015"
"Wolverhampton City Council","http://opendatacommunities.org/id/metropolitan-district-council/wolverhampton","OFFICE DEPOT","32.84","Learning Disabilities Management","5111","Stationery","07/10/2015"
"Wolverhampton City Council","http://opendatacommunities.org/id/metropolitan-district-council/wolverhampton","ARGOS RETAIL GROUP","-12.46","Play General","5310","Equipment - Purchase","07/10/2015"
"Wolverhampton City Council","http://opendatacommunities.org/id/metropolitan-district-council/wolverhampton","HARLECH FOODSERVICE LT","174.22","Towers Outdoor Education Centre","5422","Catering","07/10/2015"
"Wolverhampton City Council","http://opendatacommunities.org/id/metropolitan-district-council/wolverhampton","TESCO STORE 2836","40.60","Towers Outdoor Education Centre","5411","Provisions (Not for resale)","07/10/2015"
"Wolverhampton City Council","http://opendatacommunities.org/id/metropolitan-district-council/wolverhampton","HILTON","460.00","Strategic Asset Management - General","3504","Subsistence","07/10/2015"
"Wolverhampton City Council","http://opendatacommunities.org/id/metropolitan-district-council/wolverhampton","TESCO STORES 6727","14.70","Restorative Justice","5411","Hospitality","07/10/2015"
"Wolverhampton City Council","http://opendatacommunities.org/id/metropolitan-district-council/wolverhampton","UNITED CARPETS & BEDS","112.50","Valley Park - CIN SWU S17","5713","Financial Assistance In Exceptional Circ","07/10/2015"
"Wolverhampton City Council","http://opendatacommunities.org/id/metropolitan-district-council/wolverhampton","HN NUTTALL LTD","365.91","Towers Outdoor Education Centre","5085","Provisions (Not for resale)","07/10/2015"
"Wolverhampton City Council","http://opendatacommunities.org/id/metropolitan-district-council/wolverhampton","ASDA SUPERSTORE","25.50","Valley Park - CIN SWU S17","5411","Provisions (Not for resale)","07/10/2015"
"Wolverhampton City Council","http://opendatacommunities.org/id/metropolitan-district-council/wolverhampton","ROYAL MAIL  0845606040","1.11","Revenues","9402","Comms - Postage","07/10/2015"
"Wolverhampton City Council","http://opendatacommunities.org/id/metropolitan-district-council/wolverhampton","ASDA SUPERSTORE","37.86","Discretionary Fund","5411","Provisions (Not for resale)","07/10/2015"
"Wolverhampton City Council","http://opendatacommunities.org/id/metropolitan-district-council/wolverhampton","ASDA HOME SHOPPING","48.65","Swan Bank","5411","Provisions (Not for resale)","07/10/2015"
"Wolverhampton City Council","http://opendatacommunities.org/id/metropolitan-district-council/wolverhampton","Amazon UK Marketplace","34.99","Discretionary Fund","5942","Equipment - Purchase","07/10/2015"
"Wolverhampton City Council","http://opendatacommunities.org/id/metropolitan-district-council/wolverhampton","OFFICE DEPOT","26.67","Duke Street Bungalows","5111","Stationery","07/10/2015"
"Wolverhampton City Council","http://opendatacommunities.org/id/metropolitan-district-council/wolverhampton","FUEL CARD SERVICES LTD","250.94","Towers Outdoor Education Centre","7399","Petrol","07/10/2015"
"Wolverhampton City Council","http://opendatacommunities.org/id/metropolitan-district-council/wolverhampton","NIJJAR SPRMK LTD 48994","148.50","Ekta Day Centre","5411","Provisions (Not for resale)","07/10/2015"
"Wolverhampton City Council","http://opendatacommunities.org/id/metropolitan-district-council/wolverhampton","ASDA HOME SHOPPING","1.04","Upper Pendeford Farm Childrens Home","5411","Provisions (Not for resale)","07/10/2015"
"Wolverhampton City Council","http://opendatacommunities.org/id/metropolitan-district-council/wolverhampton","ARGOS LTD","59.37","MAST 3 - Graiseley","5310","Direct Work With Children","07/10/2015"
"Wolverhampton City Council","http://opendatacommunities.org/id/metropolitan-district-council/wolverhampton","ASDA SUPERSTORE","13.50","Whitmore Reans - CIN SWU S17","5411","Provisions (Not for resale)","07/10/2015"
"Wolverhampton City Council","http://opendatacommunities.org/id/metropolitan-district-council/wolverhampton","ASDA HOME SHOPPING","201.42","Upper Pendeford Farm Childrens Home","5411","Provisions (Not for resale)","07/10/2015"
"Wolverhampton City Council","http://opendatacommunities.org/id/metropolitan-district-council/wolverhampton","Amazon EU","30.00","Aldersley Leisure Village","5969","Equipment - Purchase","07/10/2015"
"Wolverhampton City Council","http://opendatacommunities.org/id/metropolitan-district-council/wolverhampton","COMBINED COURT","140.00","Planning","9222","Services - Fees and Charges","07/10/2015"
"Wolverhampton City Council","http://opendatacommunities.org/id/metropolitan-district-council/wolverhampton","ASDA SUPERSTORE","13.50","Whitmore Reans - CIN SWU S17","5411","Provisions (Not for resale)","07/10/2015"
"Wolverhampton City Council","http://opendatacommunities.org/id/metropolitan-district-council/wolverhampton","OFFICE DEPOT","58.44","Children's Village Children Centre","5111","Stationery","07/10/2015"
"Wolverhampton City Council","http://opendatacommunities.org/id/metropolitan-district-council/wolverhampton","ARGOS RETAIL GROUP","215.83","Learning Disabilities Management","5310","Equipment - Purchase","07/10/2015"
"Wolverhampton City Council","http://opendatacommunities.org/id/metropolitan-district-council/wolverhampton","CT WOLVERHAMPTON","55.00","Bilston 1 - CIN SWU S17","8398","Furniture","07/10/2015"
"Wolverhampton City Council","http://opendatacommunities.org/id/metropolitan-district-council/wolverhampton","Amazon UK Marketplace","7.45","Discretionary Fund","5942","Equipment - Purchase","07/10/2015"
"Wolverhampton City Council","http://opendatacommunities.org/id/metropolitan-district-council/wolverhampton","POST OFFICE COUNTER","12.60","Assessment Team (West)","9402","Comms - Postage","06/10/2015"
"Wolverhampton City Council","http://opendatacommunities.org/id/metropolitan-district-council/wolverhampton","BETWS MOTORS LTD","123.87","Towers Outdoor Education Centre","7538","Vehicle Maintenance - Repairs","06/10/2015"
"Wolverhampton City Council","http://opendatacommunities.org/id/metropolitan-district-council/wolverhampton","WWW.ACTIVEMOBILITY.CO.","63.33","Discretionary Fund","8099","Equipment - Purchase","06/10/2015"
"Wolverhampton City Council","http://opendatacommunities.org/id/metropolitan-district-council/wolverhampton","TRAINLINE","39.27","Maintenance & Technical Materials","4112","Public Transport","06/10/2015"
"Wolverhampton City Council","http://opendatacommunities.org/id/metropolitan-district-council/wolverhampton","CUMMINGS BROTHERS LOCK","79.40","Caretakers Community Centre","7399","R&M - Departmental planned (external)","06/10/2015"
"Wolverhampton City Council","http://opendatacommunities.org/id/metropolitan-district-council/wolverhampton","TESCO STORES 6727","10.29","Restorative Justice","5411","Hospitality","06/10/2015"
"Wolverhampton City Council","http://opendatacommunities.org/id/metropolitan-district-council/wolverhampton","ASDA HOME SHOPPING","158.61","Upper Pendeford Farm Childrens Home","5411","Provisions (Not for resale)","06/10/2015"
"Wolverhampton City Council","http://opendatacommunities.org/id/metropolitan-district-council/wolverhampton","Amazon UK Marketplace","59.31","Discretionary Fund","5942","Equipment - Purchase","06/10/2015"
"Wolverhampton City Council","http://opendatacommunities.org/id/metropolitan-district-council/wolverhampton","A F BLAKEMORE & SON LT","68.11","Mayoral Expenses","5411","Provisions (Not for resale)","06/10/2015"
"Wolverhampton City Council","http://opendatacommunities.org/id/metropolitan-district-council/wolverhampton","PLV Marston Holdings L","325.00","LAC Transitions Team","7399","Client Allowances","06/10/2015"
"Wolverhampton City Council","http://opendatacommunities.org/id/metropolitan-district-council/wolverhampton","ASDA HOME SHOPPING","1.61","Upper Pendeford Farm Childrens Home","5411","Provisions (Not for resale)","06/10/2015"
"Wolverhampton City Council","http://opendatacommunities.org/id/metropolitan-district-council/wolverhampton","Amazon Svcs Europe,SAR","42.71","Aldersley Leisure Village","5942","Equipment - Purchase","06/10/2015"
"Wolverhampton City Council","http://opendatacommunities.org/id/metropolitan-district-council/wolverhampton","ARGOS LTD","28.50","Eastfield 2 - CIN SWU S17","5310","Equipment - Purchase","06/10/2015"
"Wolverhampton City Council","http://opendatacommunities.org/id/metropolitan-district-council/wolverhampton","NORTHERN POTTERY & LIN","32.41","Towers Outdoor Education Centre","5099","Fixtures and Fittings - Purchases","06/10/2015"
"Wolverhampton City Council","http://opendatacommunities.org/id/metropolitan-district-council/wolverhampton","NOTEMACHINE","250.00","Childrens with Disabilities Team","6011","Financial Assistance In Exceptional Circ","06/10/2015"
"Wolverhampton City Council","http://opendatacommunities.org/id/metropolitan-district-council/wolverhampton","SAINSBURYS (2340)","69.44","Civic Centre Catering","5411","Provisions (Not for resale)","06/10/2015"
"Wolverhampton City Council","http://opendatacommunities.org/id/metropolitan-district-council/wolverhampton","WWW.ICO.GOV.UK","35.00","Members Expenses","9399","Services - Fees and Charges","06/10/2015"
"Wolverhampton City Council","http://opendatacommunities.org/id/metropolitan-district-council/wolverhampton","Virgintrains.co.uk","234.00","Parent / Partnership Service","4112","Public Transport","06/10/2015"
"Wolverhampton City Council","http://opendatacommunities.org/id/metropolitan-district-council/wolverhampton","FACEBOOK THGUT7JB92","600.10","Communications & Marketing - General","7311","Marketing \ Non-staff advertising","06/10/2015"
"Wolverhampton City Council","http://opendatacommunities.org/id/metropolitan-district-council/wolverhampton","Amazon UK Marketplace","29.29","Discretionary Fund","5942","Equipment - Purchase","06/10/2015"
"Wolverhampton City Council","http://opendatacommunities.org/id/metropolitan-district-council/wolverhampton","SAINSBURYS SACAT 2040","45.00","Duke Street Bungalows","5411","Provisions (Not for resale)","06/10/2015"
"Wolverhampton City Council","http://opendatacommunities.org/id/metropolitan-district-council/wolverhampton","SAINSBURYS (2340)","62.00","Discretionary Fund","5411","Provisions (Not for resale)","06/10/2015"
"Wolverhampton City Council","http://opendatacommunities.org/id/metropolitan-district-council/wolverhampton","WWW.ACTIVEMOBILITY.CO.","-63.33","Discretionary Fund","8099","Equipment - Purchase","06/10/2015"
"Wolverhampton City Council","http://opendatacommunities.org/id/metropolitan-district-council/wolverhampton","TRAINLINE","97.41","CIN - Children's Vilage CC - Area 8","4112","Public Transport","06/10/2015"
"Wolverhampton City Council","http://opendatacommunities.org/id/metropolitan-district-council/wolverhampton","TVLICENSING.CO.UK","145.50","46a, Second Avenue, Low Hill","7392","Services - Consultants","06/10/2015"
"Wolverhampton City Council","http://opendatacommunities.org/id/metropolitan-district-council/wolverhampton","WP-THE CRATFS COUNCIL","37.00","Creative Studies Delivery Area","8398","Subscriptions","06/10/2015"
"Wolverhampton City Council","http://opendatacommunities.org/id/metropolitan-district-council/wolverhampton","ASDA HOME SHOPPING","-0.09","Ernest Bold Court","5411","Provisions (Not for resale)","06/10/2015"
"Wolverhampton City Council","http://opendatacommunities.org/id/metropolitan-district-council/wolverhampton","WWW.COVENTRY.GOV.UK","1000.00","Public Health Support Costs","7999","Subscriptions","06/10/2015"
"Wolverhampton City Council","http://opendatacommunities.org/id/metropolitan-district-council/wolverhampton","COOKSON PRECIOUS M","72.72","Creative Studies Delivery Area","5094","Equipment - Purchase","06/10/2015"
"Wolverhampton City Council","http://opendatacommunities.org/id/metropolitan-district-council/wolverhampton","Virgintrains.co.uk","118.50","Private Sector Housing","4112","Public Transport","06/10/2015"
"Wolverhampton City Council","http://opendatacommunities.org/id/metropolitan-district-council/wolverhampton","SCREWFIX DIRECT","51.88","College of Further Education","5211","Equipment - R & M","06/10/2015"
"Wolverhampton City Council","http://opendatacommunities.org/id/metropolitan-district-council/wolverhampton","TRAINLINE","54.26","CIN - Children's Vilage CC - Area 8","4112","Public Transport","06/10/2015"
"Wolverhampton City Council","http://opendatacommunities.org/id/metropolitan-district-council/wolverhampton","CUMMINGS BROTHERS LOCK","102.92","Caretakers Community Centre","7399","R&M - Departmental planned (external)","06/10/2015"
"Wolverhampton City Council","http://opendatacommunities.org/id/metropolitan-district-council/wolverhampton","WICKES","15.30","Specialist Support Service - North","5211","Equipment - R & M","06/10/2015"
"Wolverhampton City Council","http://opendatacommunities.org/id/metropolitan-district-council/wolverhampton","TRAINLINE","101.80","Safeguarding Children","4112","Public Transport","06/10/2015"
"Wolverhampton City Council","http://opendatacommunities.org/id/metropolitan-district-council/wolverhampton","CHEMSOL CYMRU LTD","189.50","Towers Outdoor Education Centre","5199","Fixtures and Fittings - Purchases","06/10/2015"
"Wolverhampton City Council","http://opendatacommunities.org/id/metropolitan-district-council/wolverhampton","WWW.IDHDIRECT.CO.UK","375.00","Creative Studies Delivery Area","5943","Equipment - Purchase","06/10/2015"
"Wolverhampton City Council","http://opendatacommunities.org/id/metropolitan-district-council/wolverhampton","Virgintrains.co.uk","91.20","Macmillan Welfare Rights","4112","Public Transport","06/10/2015"
"Wolverhampton City Council","http://opendatacommunities.org/id/metropolitan-district-council/wolverhampton","EPSON-STORE.DE","245.22","College of Further Education","5943","Computing - Purchase of Hardware","06/10/2015"
"Wolverhampton City Council","http://opendatacommunities.org/id/metropolitan-district-council/wolverhampton","CAR PARKING OFFICE","36.30","Work Related Studies","7523","Car Allowances","06/10/2015"
"Wolverhampton City Council","http://opendatacommunities.org/id/metropolitan-district-council/wolverhampton","TRAINLINE","-41.70","CIN - Children's Vilage CC - Area 8","4112","Public Transport","06/10/2015"
"Wolverhampton City Council","http://opendatacommunities.org/id/metropolitan-district-council/wolverhampton","ASDA SUPERSTORE","46.25","MAST 3 - Graiseley","5411","Direct Work With Children","06/10/2015"
"Wolverhampton City Council","http://opendatacommunities.org/id/metropolitan-district-council/wolverhampton","ASDA HOME SHOPPING","39.89","Ernest Bold Court","5411","Provisions (Not for resale)","06/10/2015"
"Wolverhampton City Council","http://opendatacommunities.org/id/metropolitan-district-council/wolverhampton","Amazon Prime","79.00","Youth Offending Team","5968","Subscriptions","05/10/2015"
"Wolverhampton City Council","http://opendatacommunities.org/id/metropolitan-district-council/wolverhampton","Wix.com","46.57","Technical Support","5817","Computing - Purchase of Software","05/10/2015"
"Wolverhampton City Council","http://opendatacommunities.org/id/metropolitan-district-council/wolverhampton","CUMMINGS BROTHERS LOCK","9.58","Caretakers Community Centre","7399","R&M - Departmental planned (external)","05/10/2015"
"Wolverhampton City Council","http://opendatacommunities.org/id/metropolitan-district-council/wolverhampton","E-VOLVE MOLESKINE","122.00","Civic Halls Non Direct Management A/C","5691","Stationery","05/10/2015"
"Wolverhampton City Council","http://opendatacommunities.org/id/metropolitan-district-council/wolverhampton","Wix.com","46.57","Technical Support","5817","Computing - Purchase of Software","05/10/2015"
"Wolverhampton City Council","http://opendatacommunities.org/id/metropolitan-district-council/wolverhampton","OFFICE DEPOT","62.49","Youth Offending Team","5111","Stationery","05/10/2015"
"Wolverhampton City Council","http://opendatacommunities.org/id/metropolitan-district-council/wolverhampton","OFFICE DEPOT","25.98","Adoption Team","5111","Stationery","05/10/2015"
"Wolverhampton City Council","http://opendatacommunities.org/id/metropolitan-district-council/wolverhampton","CUMMINGS BROTHERS LOCK","84.00","Caretakers Community Centre","7399","R&M - Departmental planned (external)","05/10/2015"
"Wolverhampton City Council","http://opendatacommunities.org/id/metropolitan-district-council/wolverhampton","ARGOS RETAIL GROUP","168.88","LAC Transitions Team","5310","Equipment - Purchase","05/10/2015"
"Wolverhampton City Council","http://opendatacommunities.org/id/metropolitan-district-council/wolverhampton","WILKO RETAIL LIMIT","8.33","Technician","5722","Equipment - Purchase","05/10/2015"
"Wolverhampton City Council","http://opendatacommunities.org/id/metropolitan-district-council/wolverhampton","Virgintrains.co.uk","25.00","Members Expenses","4112","Public Transport","05/10/2015"
"Wolverhampton City Council","http://opendatacommunities.org/id/metropolitan-district-council/wolverhampton","G & M HALE LTD","86.90","Creative Studies Delivery Area","5992","Materials for resale","05/10/2015"
"Wolverhampton City Council","http://opendatacommunities.org/id/metropolitan-district-council/wolverhampton","LIVERPOOL DIR SIA","220.00","Traffic Signals","7393","Computing - Purchase of Hardware","05/10/2015"
"Wolverhampton City Council","http://opendatacommunities.org/id/metropolitan-district-council/wolverhampton","SAIN PENKRIDGE STONE C","250.00","Dove - CIN SWU S17","6011","Financial Assistance In Exceptional Circ","05/10/2015"
"Wolverhampton City Council","http://opendatacommunities.org/id/metropolitan-district-council/wolverhampton","ASDA HOME SHOPPING","66.23","Swan Bank","5411","Provisions (Not for resale)","05/10/2015"
"Wolverhampton City Council","http://opendatacommunities.org/id/metropolitan-district-council/wolverhampton","LIVERPOOL DIR SIA","220.00","Traffic Signals","7393","Computing - Purchase of Hardware","05/10/2015"
"Wolverhampton City Council","http://opendatacommunities.org/id/metropolitan-district-council/wolverhampton","ASDA HOME SHOPPING","-0.39","Ernest Bold Court","5411","Provisions (Not for resale)","05/10/2015"
"Wolverhampton City Council","http://opendatacommunities.org/id/metropolitan-district-council/wolverhampton","POST OFFICE COUNTER","446.04","Looked After Team 1","9402","Comms - Postage","05/10/2015"
"Wolverhampton City Council","http://opendatacommunities.org/id/metropolitan-district-council/wolverhampton","G & M HALE (SUNDRIES)","53.25","Discretionary Fund","5992","Materials","05/10/2015"
"Wolverhampton City Council","http://opendatacommunities.org/id/metropolitan-district-council/wolverhampton","CUMMINGS BROTHERS LOCK","189.76","Caretakers Community Centre","7399","R&M - Departmental planned (external)","05/10/2015"
"Wolverhampton City Council","http://opendatacommunities.org/id/metropolitan-district-council/wolverhampton","Amazon UK Marketplace","59.71","Bilston 2 - CIN SWU S17","5942","Furniture","05/10/2015"
"Wolverhampton City Council","http://opendatacommunities.org/id/metropolitan-district-council/wolverhampton","WAITROSE 696","2.20","Swan Bank","5411","Provisions (Not for resale)","05/10/2015"
"Wolverhampton City Council","http://opendatacommunities.org/id/metropolitan-district-council/wolverhampton","LIVERPOOL DIR SIA","220.00","Traffic Signals","7393","Computing - Purchase of Hardware","05/10/2015"
"Wolverhampton City Council","http://opendatacommunities.org/id/metropolitan-district-council/wolverhampton","OFFICE DEPOT","73.59","Assessment Team (North)","5111","Stationery","05/10/2015"
"Wolverhampton City Council","http://opendatacommunities.org/id/metropolitan-district-council/wolverhampton","CARVER/WOLVERHAMPTON/L","39.42","Northicote Farm","5211","Materials","05/10/2015"
"Wolverhampton City Council","http://opendatacommunities.org/id/metropolitan-district-council/wolverhampton","P.S.M. SPORTSWEAR LTD","30.00","LAC Admin Team","5941","Equipment - Purchase","05/10/2015"
"Wolverhampton City Council","http://opendatacommunities.org/id/metropolitan-district-council/wolverhampton","OFFICE DEPOT","6.28","Assessment Team (North)","5111","Stationery","05/10/2015"
"Wolverhampton City Council","http://opendatacommunities.org/id/metropolitan-district-council/wolverhampton","GRO HM PASSPORT OFFICE","18.50","Berries - CIN SWU S17","9399","Services - Fees and Charges","05/10/2015"
"Wolverhampton City Council","http://opendatacommunities.org/id/metropolitan-district-council/wolverhampton","ASDA HOME SHOPPING","81.56","Ernest Bold Court","5411","Provisions (Not for resale)","05/10/2015"
"Wolverhampton City Council","http://opendatacommunities.org/id/metropolitan-district-council/wolverhampton","Virgintrains.co.uk","78.00","Members Expenses","4112","Public Transport","05/10/2015"
"Wolverhampton City Council","http://opendatacommunities.org/id/metropolitan-district-council/wolverhampton","COMBINED COURT","7300.00","Head of Service - CINCP","9222","Services - Professional Fees","05/10/2015"
"Wolverhampton City Council","http://opendatacommunities.org/id/metropolitan-district-council/wolverhampton","POST OFFICE COUNTER","1.73","Assessment Team (North)","9402","Comms - Postage","05/10/2015"
"Wolverhampton City Council","http://opendatacommunities.org/id/metropolitan-district-council/wolverhampton","FSPRG.COM OFFLAJN.COM","16.39","College of Further Education","5734","Computing - Purchase of Software","05/10/2015"
"Wolverhampton City Council","http://opendatacommunities.org/id/metropolitan-district-council/wolverhampton","RYMAN","29.93","Corporate Policy and Equalities","5943","Stationery","05/10/2015"
"Wolverhampton City Council","http://opendatacommunities.org/id/metropolitan-district-council/wolverhampton","EDREAMS","219.70","Art Gallery","4722","Public Transport","05/10/2015"
"Wolverhampton City Council","http://opendatacommunities.org/id/metropolitan-district-council/wolverhampton","HERON FOODS LTD","21.24","Ernest Bold Court","5499","Catering","05/10/2015"
"Wolverhampton City Council","http://opendatacommunities.org/id/metropolitan-district-council/wolverhampton","Amazon EU","22.70","Bilston 2 - CIN SWU S17","5969","Furniture","05/10/2015"
"Wolverhampton City Council","http://opendatacommunities.org/id/metropolitan-district-council/wolverhampton","Virgintrains.co.uk","139.50","Members Expenses","4112","Public Transport","05/10/2015"
"Wolverhampton City Council","http://opendatacommunities.org/id/metropolitan-district-council/wolverhampton","ROYAL MAIL  0845606040","1.54","Mayoral Expenses","9402","Comms - Postage","05/10/2015"
"Wolverhampton City Council","http://opendatacommunities.org/id/metropolitan-district-council/wolverhampton","NOVOTEL WOLVERHAMPTON","105.00","Enterprise Programmes","7011","Accommodation Costs","02/10/2015"
"Wolverhampton City Council","http://opendatacommunities.org/id/metropolitan-district-council/wolverhampton","OFFICE DEPOT","68.63","Financial Assessments","5111","Stationery","02/10/2015"
"Wolverhampton City Council","http://opendatacommunities.org/id/metropolitan-district-council/wolverhampton","Amazon UK Marketplace","9.25","Bert Williams Leisure Centre","5942","Cleaning Supplies and Materials","02/10/2015"
"Wolverhampton City Council","http://opendatacommunities.org/id/metropolitan-district-council/wolverhampton","HMCOURTS-SERVICE.G","20.00","Mental Health Assessment & Care Mgmt","9222","Services - Fees and Charges","02/10/2015"
"Wolverhampton City Council","http://opendatacommunities.org/id/metropolitan-district-council/wolverhampton","OFFICE DEPOT","-58.44","Children's Village Children Centre","5111","Stationery","02/10/2015"
"Wolverhampton City Council","http://opendatacommunities.org/id/metropolitan-district-council/wolverhampton","NCC INCOME","21.80","LAC Admin Team","9399","Services - Fees and Charges","02/10/2015"
"Wolverhampton City Council","http://opendatacommunities.org/id/metropolitan-district-council/wolverhampton","UNIVERSAL MEDICAL ID U","31.40","Graiseley - CIN SWU S17","5999","Equipment - Purchase","02/10/2015"
"Wolverhampton City Council","http://opendatacommunities.org/id/metropolitan-district-council/wolverhampton","SAINSBURYS 2040","40.00","Duke Street Bungalows","5411","Provisions (Not for resale)","02/10/2015"
"Wolverhampton City Council","http://opendatacommunities.org/id/metropolitan-district-council/wolverhampton","OFFICE DEPOT","30.14","MAST 2 - Bilston","5111","Stationery","02/10/2015"
"Wolverhampton City Council","http://opendatacommunities.org/id/metropolitan-district-council/wolverhampton","FTPE WEBTIS 1","31.70","LAC Transitions Team","4112","Public Transport","02/10/2015"
"Wolverhampton City Council","http://opendatacommunities.org/id/metropolitan-district-council/wolverhampton","Amazon UK Marketplace","126.50","LAC Transitions Team","5942","Books","02/10/2015"
"Wolverhampton City Council","http://opendatacommunities.org/id/metropolitan-district-council/wolverhampton","TRAINLINE","35.45","Legal Services","4112","Public Transport","02/10/2015"
"Wolverhampton City Council","http://opendatacommunities.org/id/metropolitan-district-council/wolverhampton","BT PAY BY PHONE","189.38","Art Gallery","4814","Comms - Telephone Call charges","02/10/2015"
"Wolverhampton City Council","http://opendatacommunities.org/id/metropolitan-district-council/wolverhampton","A B C COUNTDOWN CARS L","25.00","Dove - CIN SWU S17","4121","Client Transport","02/10/2015"
"Wolverhampton City Council","http://opendatacommunities.org/id/metropolitan-district-council/wolverhampton","WWW.BIRMINGHAM.GOV.UK","-3.00","Head of Service - CINCP","8299","Services - Professional Fees","02/10/2015"
"Wolverhampton City Council","http://opendatacommunities.org/id/metropolitan-district-council/wolverhampton","Amazon Svcs Europe,SAR","7.35","Global Budgets","5942","Books","02/10/2015"
"Wolverhampton City Council","http://opendatacommunities.org/id/metropolitan-district-council/wolverhampton","TRAINLINE","152.49","Legal Services","4112","Public Transport","02/10/2015"
"Wolverhampton City Council","http://opendatacommunities.org/id/metropolitan-district-council/wolverhampton","WATERSTONES","100.00","Global Budgets","5942","Books","02/10/2015"
"Wolverhampton City Council","http://opendatacommunities.org/id/metropolitan-district-council/wolverhampton","Virgintrains.co.uk","118.50","Private Sector Housing","4112","Public Transport","02/10/2015"
"Wolverhampton City Council","http://opendatacommunities.org/id/metropolitan-district-council/wolverhampton","CENTRO HOUSE","1223.60","Travel Scratch Cards & Rail Warrants","4112","Public Transport","02/10/2015"
"Wolverhampton City Council","http://opendatacommunities.org/id/metropolitan-district-council/wolverhampton","TESCO STORES 6727","7.35","Restorative Justice","5411","Hospitality","02/10/2015"
"Wolverhampton City Council","http://opendatacommunities.org/id/metropolitan-district-council/wolverhampton","WHATEVERHAPPENS/KNOWHO","5.50","LAC Education Team (LACE)","5968","Subscriptions","02/10/2015"
"Wolverhampton City Council","http://opendatacommunities.org/id/metropolitan-district-council/wolverhampton","CENTRO HOUSE","1000.00","Banking","4112","Public Transport","02/10/2015"
"Wolverhampton City Council","http://opendatacommunities.org/id/metropolitan-district-council/wolverhampton","COMBINED COURT","825.00","Rents Management","9222","Services - Professional Fees","02/10/2015"
"Wolverhampton City Council","http://opendatacommunities.org/id/metropolitan-district-council/wolverhampton","WWW.LAMPSHOPONLINE.CO.","45.60","Technician","5072","Equipment - Purchase","01/10/2015"
"Wolverhampton City Council","http://opendatacommunities.org/id/metropolitan-district-council/wolverhampton","OFFICE DEPOT","11.88","LAC Admin Team","5111","Stationery","01/10/2015"
"Wolverhampton City Council","http://opendatacommunities.org/id/metropolitan-district-council/wolverhampton","UNTOUCHABLES","15.83","Meals on Wheels","5231","Materials","01/10/2015"
"Wolverhampton City Council","http://opendatacommunities.org/id/metropolitan-district-council/wolverhampton","OFFICE DEPOT","53.81","Upper Pendeford Farm Childrens Home","5111","Stationery","01/10/2015"
"Wolverhampton City Council","http://opendatacommunities.org/id/metropolitan-district-council/wolverhampton","WM MORRISON 024","14.04","CIN - Bilston CC2 - Area 2","5411","Comms - Postage","01/10/2015"
"Wolverhampton City Council","http://opendatacommunities.org/id/metropolitan-district-council/wolverhampton","TESCO STORES 3414","6.00","Mayoral Expenses","5411","Provisions (Not for resale)","01/10/2015"
"Wolverhampton City Council","http://opendatacommunities.org/id/metropolitan-district-council/wolverhampton","REGISTRARS OFFICE","26.00","Head of Service - CINCP","8299","Services - Professional Fees","01/10/2015"
"Wolverhampton City Council","http://opendatacommunities.org/id/metropolitan-district-council/wolverhampton","RONS FURNISHERS","185.00","Dove - CIN SWU S17","5712","Equipment - Purchase","01/10/2015"
"Wolverhampton City Council","http://opendatacommunities.org/id/metropolitan-district-council/wolverhampton","MAPLIN WOLVERHAMPT WV1","12.49","Technical Material","5732","Equipment - Purchase","01/10/2015"
"Wolverhampton City Council","http://opendatacommunities.org/id/metropolitan-district-council/wolverhampton","ARGOS RETAIL GROUP","124.99","MAST 7 - Berrybrook","5310","Equipment - Purchase","01/10/2015"
"Wolverhampton City Council","http://opendatacommunities.org/id/metropolitan-district-council/wolverhampton","SAINSBURYS 2040","23.94","Ernest Bold Court","5411","Provisions (Not for resale)","01/10/2015"
"Wolverhampton City Council","http://opendatacommunities.org/id/metropolitan-district-council/wolverhampton","IKEA ONLINE","39.58","Windsor - CIN SWU S17","5719","Equipment - Purchase","01/10/2015"
"Wolverhampton City Council","http://opendatacommunities.org/id/metropolitan-district-council/wolverhampton","OFFICE DEPOT","42.75","Education Catering - General Overheads","5111","Stationery","01/10/2015"
"Wolverhampton City Council","http://opendatacommunities.org/id/metropolitan-district-council/wolverhampton","Virgintrains.co.uk","66.00","Members Expenses","4112","Public Transport","01/10/2015"
"Wolverhampton City Council","http://opendatacommunities.org/id/metropolitan-district-council/wolverhampton","Severn Tren Water","60.00","Westside","4900","Water Charges","01/10/2015"
"Wolverhampton City Council","http://opendatacommunities.org/id/metropolitan-district-council/wolverhampton","BLOOM'S (WLVHMPTN) LTD","40.00","Mayoral Expenses","5611","Equipment - Purchase","01/10/2015"
"Wolverhampton City Council","http://opendatacommunities.org/id/metropolitan-district-council/wolverhampton","CUMMINGS BROTHERS LOCK","21.67","Caretakers Community Centre","7399","R&M - Departmental planned (external)","01/10/2015"
"Wolverhampton City Council","http://opendatacommunities.org/id/metropolitan-district-council/wolverhampton","CUMMINGS BROTHERS LOCK","10.00","Parks - Ranger Service","7399","Equipment - Purchase","01/10/2015"
"Wolverhampton City Council","http://opendatacommunities.org/id/metropolitan-district-council/wolverhampton","NATWEST BANK","50.00","Outreach Support","6011","Subsistence","01/10/2015"
"Wolverhampton City Council","http://opendatacommunities.org/id/metropolitan-district-council/wolverhampton","LONDON MIDLAND TIC","22.00","MAST 2 - Bilston","4112","Grant Payments","01/10/2015"
"Wolverhampton City Council","http://opendatacommunities.org/id/metropolitan-district-council/wolverhampton","ARGOS RETAIL GROUP","291.48","Windsor - CIN SWU S17","5310","Equipment - Purchase","01/10/2015"
"Wolverhampton City Council","http://opendatacommunities.org/id/metropolitan-district-council/wolverhampton","FACEBOOK VNKCY7NQ92","296.54","Civic Hall Administration Overhead Acct","7311","Marketing \ Non-staff advertising","01/10/2015"
"Wolverhampton City Council","http://opendatacommunities.org/id/metropolitan-district-council/wolverhampton","TRAINLINE","13.62","Customer Services","4112","Public Transport","01/10/2015"
"Wolverhampton City Council","http://opendatacommunities.org/id/metropolitan-district-council/wolverhampton","Amazon UK Marketplace","23.97","Legal Services","5942","Stationery","01/10/2015"
"Wolverhampton City Council","http://opendatacommunities.org/id/metropolitan-district-council/wolverhampton","WWW.BIRMINGHAM.GOV.UK","12.00","Head of Service - CINCP","8299","Services - Professional Fees","01/10/2015"
"Wolverhampton City Council","http://opendatacommunities.org/id/metropolitan-district-council/wolverhampton","TRAINLINE","16.88","Looked After Team 1","4112","Public Transport","01/10/2015"
"Wolverhampton City Council","http://opendatacommunities.org/id/metropolitan-district-council/wolverhampton","Amazon EU","10.49","Youth Offending Team","5969","Equipment - Purchase","01/10/2015"
"Wolverhampton City Council","http://opendatacommunities.org/id/metropolitan-district-council/wolverhampton","Severn Tren Water","330.88","Westside","4900","Water Charges","01/10/2015"
"Wolverhampton City Council","http://opendatacommunities.org/id/metropolitan-district-council/wolverhampton","BARCLAYS BANK PLC","250.00","Priory Green - CIN SWU S17","6011","Financial Assistance In Exceptional Circ","01/10/2015"
"Wolverhampton City Council","http://opendatacommunities.org/id/metropolitan-district-council/wolverhampton","CT WOLVERHAMPTON","187.50","Bilston 2 - CIN SWU S17","8398","Furniture","01/10/2015"
"Wolverhampton City Council","http://opendatacommunities.org/id/metropolitan-district-council/wolverhampton","FACEBOOK 6R2K48AC22","99.96","College of Further Education","7311","Marketing \ Non-staff advertising","01/10/2015"
"Wolverhampton City Council","http://opendatacommunities.org/id/metropolitan-district-council/wolverhampton","FACEBOOK E7G8T7JB92","189.53","Communications & Marketing - General","7311","Marketing \ Non-staff advertising","01/10/2015"
"Wolverhampton City Council","http://opendatacommunities.org/id/metropolitan-district-council/wolverhampton","BILASH(WOLVERHAMPTON)","105.33","Audience Development","5812","Marketing \ Non-staff advertising","01/10/2015"
"Wolverhampton City Council","http://opendatacommunities.org/id/metropolitan-district-council/wolverhampton","Amazon UK Marketplace","11.42","Global Budgets","5942","Books","01/10/2015"
"Wolverhampton City Council","http://opendatacommunities.org/id/metropolitan-district-council/wolverhampton","","","","","",""
